{"text_format":"1","workbook":"xlsx","n_sheets":1,"sheets":["ZU"],"not_rendered":{"charts":0,"images":1,"macros":1,"external_links":0,"defined_names":7,"comments":0,"pivot_tables":0},"unopened":[],"bounds":{"document_bytes":16777216,"sheet_cells":100000,"rows_first":2000,"rows_last":500,"rows_between":2000,"halvings":0,"cell_chars":16384,"cell_head_chars":4096},"cells_cut":0,"cells_raw":0,"read":"whole","date_system":"1900"}

{"sheet":"ZU","index":0,"n_rows":41,"n_cols":1006,"rows_kept":41,"cut":false,"hidden":false,"merged":[[28,1001,29,1001],[28,1002,29,1002],[28,1003,29,1003],[28,1004,29,1004],[28,992,29,992],[28,993,29,993],[28,994,29,994],[28,995,29,995],[28,996,29,996],[28,997,29,997],[28,998,29,998],[28,999,29,999],[28,1000,29,1000],[28,983,29,983],[28,984,29,984],[28,985,29,985],[28,986,29,986],[28,987,29,987],[28,988,29,988],[28,989,29,989],[28,990,29,990],[28,991,29,991],[28,974,29,974],[28,975,29,975],[28,976,29,976],[28,977,29,977],[28,978,29,978],[28,979,29,979],[28,980,29,980],[28,981,29,981],[28,982,29,982],[28,965,29,965],[28,966,29,966],[28,967,29,967],[28,968,29,968],[28,969,29,969],[28,970,29,970],[28,971,29,971],[28,972,29,972],[28,973,29,973],[28,956,29,956],[28,957,29,957],[28,958,29,958],[28,959,29,959],[28,960,29,960],[28,961,29,961],[28,962,29,962],[28,963,29,963],[28,964,29,964],[28,947,29,947],[28,948,29,948],[28,949,29,949],[28,950,29,950],[28,951,29,951],[28,952,29,952],[28,953,29,953],[28,954,29,954],[28,955,29,955],[28,938,29,938],[28,939,29,939],[28,940,29,940],[28,941,29,941],[28,942,29,942],[28,943,29,943],[28,944,29,944],[28,945,29,945],[28,946,29,946],[28,929,29,929],[28,930,29,930],[28,931,29,931],[28,932,29,932],[28,933,29,933],[28,934,29,934],[28,935,29,935],[28,936,29,936],[28,937,29,937],[28,920,29,920],[28,921,29,921],[28,922,29,922],[28,923,29,923],[28,924,29,924],[28,925,29,925],[28,926,29,926],[28,927,29,927],[28,928,29,928],[28,911,29,911],[28,912,29,912],[28,913,29,913],[28,914,29,914],[28,915,29,915],[28,916,29,916],[28,917,29,917],[28,918,29,918],[28,919,29,919],[28,902,29,902],[28,903,29,903],[28,904,29,904],[28,905,29,905],[28,906,29,906],[28,907,29,907],[28,908,29,908],[28,909,29,909],[28,910,29,910],[28,893,29,893],[28,894,29,894],[28,895,29,895],[28,896,29,896],[28,897,29,897],[28,898,29,898],[28,899,29,899],[28,900,29,900],[28,901,29,901],[28,884,29,884],[28,885,29,885],[28,886,29,886],[28,887,29,887],[28,888,29,888],[28,889,29,889],[28,890,29,890],[28,891,29,891],[28,892,29,892],[28,875,29,875],[28,876,29,876],[28,877,29,877],[28,878,29,878],[28,879,29,879],[28,880,29,880],[28,881,29,881],[28,882,29,882],[28,883,29,883],[28,866,29,866],[28,867,29,867],[28,868,29,868],[28,869,29,869],[28,870,29,870],[28,871,29,871],[28,872,29,872],[28,873,29,873],[28,874,29,874],[28,857,29,857],[28,858,29,858],[28,859,29,859],[28,860,29,860],[28,861,29,861],[28,862,29,862],[28,863,29,863],[28,864,29,864],[28,865,29,865],[28,848,29,848],[28,849,29,849],[28,850,29,850],[28,851,29,851],[28,852,29,852],[28,853,29,853],[28,854,29,854],[28,855,29,855],[28,856,29,856],[28,839,29,839],[28,840,29,840],[28,841,29,841],[28,842,29,842],[28,843,29,843],[28,844,29,844],[28,845,29,845],[28,846,29,846],[28,847,29,847],[28,830,29,830],[28,831,29,831],[28,832,29,832],[28,833,29,833],[28,834,29,834],[28,835,29,835],[28,836,29,836],[28,837,29,837],[28,838,29,838],[28,821,29,821],[28,822,29,822],[28,823,29,823],[28,824,29,824],[28,825,29,825],[28,826,29,826],[28,827,29,827],[28,828,29,828],[28,829,29,829],[28,812,29,812],[28,813,29,813],[28,814,29,814],[28,815,29,815],[28,816,29,816],[28,817,29,817],[28,818,29,818],[28,819,29,819],[28,820,29,820],[28,803,29,803],[28,804,29,804],[28,805,29,805],[28,806,29,806],[28,807,29,807],[28,808,29,808],[28,809,29,809],[28,810,29,810],[28,811,29,811],[28,794,29,794],[28,795,29,795],[28,796,29,796],[28,797,29,797],[28,798,29,798],[28,799,29,799],[28,800,29,800],[28,801,29,801],[28,802,29,802],[28,785,29,785],[28,786,29,786],[28,787,29,787],[28,788,29,788],[28,789,29,789],[28,790,29,790],[28,791,29,791],[28,792,29,792],[28,793,29,793],[28,776,29,776],[28,777,29,777],[28,778,29,778],[28,779,29,779],[28,780,29,780],[28,781,29,781],[28,782,29,782],[28,783,29,783],[28,784,29,784],[28,767,29,767],[28,768,29,768],[28,769,29,769],[28,770,29,770],[28,771,29,771],[28,772,29,772],[28,773,29,773],[28,774,29,774],[28,775,29,775],[28,758,29,758],[28,759,29,759],[28,760,29,760],[28,761,29,761],[28,762,29,762],[28,763,29,763],[28,764,29,764],[28,765,29,765],[28,766,29,766],[28,749,29,749],[28,750,29,750],[28,751,29,751],[28,752,29,752],[28,753,29,753],[28,754,29,754],[28,755,29,755],[28,756,29,756],[28,757,29,757],[28,740,29,740],[28,741,29,741],[28,742,29,742],[28,743,29,743],[28,744,29,744],[28,745,29,745],[28,746,29,746],[28,747,29,747],[28,748,29,748],[28,731,29,731],[28,732,29,732],[28,733,29,733],[28,734,29,734],[28,735,29,735],[28,736,29,736],[28,737,29,737],[28,738,29,738],[28,739,29,739],[28,722,29,722],[28,723,29,723],[28,724,29,724],[28,725,29,725],[28,726,29,726],[28,727,29,727],[28,728,29,728],[28,729,29,729],[28,730,29,730],[28,713,29,713],[28,714,29,714],[28,715,29,715],[28,716,29,716],[28,717,29,717],[28,718,29,718],[28,719,29,719],[28,720,29,720],[28,721,29,721],[28,704,29,704],[28,705,29,705],[28,706,29,706],[28,707,29,707],[28,708,29,708],[28,709,29,709],[28,710,29,710],[28,711,29,711],[28,712,29,712],[28,695,29,695],[28,696,29,696],[28,697,29,697],[28,698,29,698],[28,699,29,699],[28,700,29,700],[28,701,29,701],[28,702,29,702],[28,703,29,703],[28,686,29,686],[28,687,29,687],[28,688,29,688],[28,689,29,689],[28,690,29,690],[28,691,29,691],[28,692,29,692],[28,693,29,693],[28,694,29,694],[28,677,29,677],[28,678,29,678],[28,679,29,679],[28,680,29,680],[28,681,29,681],[28,682,29,682],[28,683,29,683],[28,684,29,684],[28,685,29,685],[28,668,29,668],[28,669,29,669],[28,670,29,670],[28,671,29,671],[28,672,29,672],[28,673,29,673],[28,674,29,674],[28,675,29,675],[28,676,29,676],[28,659,29,659],[28,660,29,660],[28,661,29,661],[28,662,29,662],[28,663,29,663],[28,664,29,664],[28,665,29,665],[28,666,29,666],[28,667,29,667],[28,650,29,650],[28,651,29,651],[28,652,29,652],[28,653,29,653],[28,654,29,654],[28,655,29,655],[28,656,29,656],[28,657,29,657],[28,658,29,658],[28,641,29,641],[28,642,29,642],[28,643,29,643],[28,644,29,644],[28,645,29,645],[28,646,29,646],[28,647,29,647],[28,648,29,648],[28,649,29,649],[28,632,29,632],[28,633,29,633],[28,634,29,634],[28,635,29,635],[28,636,29,636],[28,637,29,637],[28,638,29,638],[28,639,29,639],[28,640,29,640],[28,623,29,623],[28,624,29,624],[28,625,29,625],[28,626,29,626],[28,627,29,627],[28,628,29,628],[28,629,29,629],[28,630,29,630],[28,631,29,631],[28,614,29,614],[28,615,29,615],[28,616,29,616],[28,617,29,617],[28,618,29,618],[28,619,29,619],[28,620,29,620],[28,621,29,621],[28,622,29,622],[28,605,29,605],[28,606,29,606],[28,607,29,607],[28,608,29,608],[28,609,29,609],[28,610,29,610],[28,611,29,611],[28,612,29,612],[28,613,29,613],[28,596,29,596],[28,597,29,597],[28,598,29,598],[28,599,29,599],[28,600,29,600],[28,601,29,601],[28,602,29,602],[28,603,29,603],[28,604,29,604],[28,587,29,587],[28,588,29,588],[28,589,29,589],[28,590,29,590],[28,591,29,591],[28,592,29,592],[28,593,29,593],[28,594,29,594],[28,595,29,595],[28,578,29,578],[28,579,29,579],[28,580,29,580],[28,581,29,581],[28,582,29,582],[28,583,29,583],[28,584,29,584],[28,585,29,585],[28,586,29,586],[28,569,29,569],[28,570,29,570],[28,571,29,571],[28,572,29,572],[28,573,29,573],[28,574,29,574],[28,575,29,575],[28,576,29,576],[28,577,29,577],[28,560,29,560],[28,561,29,561],[28,562,29,562],[28,563,29,563],[28,564,29,564],[28,565,29,565],[28,566,29,566],[28,567,29,567],[28,568,29,568],[28,551,29,551],[28,552,29,552],[28,553,29,553],[28,554,29,554],[28,555,29,555],[28,556,29,556],[28,557,29,557],[28,558,29,558],[28,559,29,559],[28,542,29,542],[28,543,29,543],[28,544,29,544],[28,545,29,545],[28,546,29,546],[28,547,29,547],[28,548,29,548],[28,549,29,549],[28,550,29,550],[28,533,29,533],[28,534,29,534],[28,535,29,535],[28,536,29,536],[28,537,29,537],[28,538,29,538],[28,539,29,539],[28,540,29,540],[28,541,29,541],[28,524,29,524],[28,525,29,525],[28,526,29,526],[28,527,29,527],[28,528,29,528],[28,529,29,529],[28,530,29,530],[28,531,29,531],[28,532,29,532],[28,515,29,515],[28,516,29,516],[28,517,29,517],[28,518,29,518],[28,519,29,519],[28,520,29,520],[28,521,29,521],[28,522,29,522],[28,523,29,523],[28,506,29,506],[28,507,29,507],[28,508,29,508],[28,509,29,509],[28,510,29,510],[28,511,29,511],[28,512,29,512],[28,513,29,513],[28,514,29,514],[28,497,29,497],[28,498,29,498],[28,499,29,499],[28,500,29,500],[28,501,29,501],[28,502,29,502],[28,503,29,503],[28,504,29,504],[28,505,29,505],[28,488,29,488],[28,489,29,489],[28,490,29,490],[28,491,29,491],[28,492,29,492],[28,493,29,493],[28,494,29,494],[28,495,29,495],[28,496,29,496],[28,479,29,479],[28,480,29,480],[28,481,29,481],[28,482,29,482],[28,483,29,483],[28,484,29,484],[28,485,29,485],[28,486,29,486],[28,487,29,487],[28,470,29,470],[28,471,29,471],[28,472,29,472],[28,473,29,473],[28,474,29,474],[28,475,29,475],[28,476,29,476],[28,477,29,477],[28,478,29,478],[28,461,29,461],[28,462,29,462],[28,463,29,463],[28,464,29,464],[28,465,29,465],[28,466,29,466],[28,467,29,467],[28,468,29,468],[28,469,29,469],[28,452,29,452],[28,453,29,453],[28,454,29,454],[28,455,29,455],[28,456,29,456],[28,457,29,457],[28,458,29,458],[28,459,29,459],[28,460,29,460],[28,443,29,443],[28,444,29,444],[28,445,29,445],[28,446,29,446],[28,447,29,447],[28,448,29,448],[28,449,29,449],[28,450,29,450],[28,451,29,451],[28,434,29,434],[28,435,29,435],[28,436,29,436],[28,437,29,437],[28,438,29,438],[28,439,29,439],[28,440,29,440],[28,441,29,441],[28,442,29,442],[28,425,29,425],[28,426,29,426],[28,427,29,427],[28,428,29,428],[28,429,29,429],[28,430,29,430],[28,431,29,431],[28,432,29,432],[28,433,29,433],[28,416,29,416],[28,417,29,417],[28,418,29,418],[28,419,29,419],[28,420,29,420],[28,421,29,421],[28,422,29,422],[28,423,29,423],[28,424,29,424],[28,407,29,407],[28,408,29,408],[28,409,29,409],[28,410,29,410],[28,411,29,411],[28,412,29,412],[28,413,29,413],[28,414,29,414],[28,415,29,415],[28,398,29,398],[28,399,29,399],[28,400,29,400],[28,401,29,401],[28,402,29,402],[28,403,29,403],[28,404,29,404],[28,405,29,405],[28,406,29,406],[28,389,29,389],[28,390,29,390],[28,391,29,391],[28,392,29,392],[28,393,29,393],[28,394,29,394],[28,395,29,395],[28,396,29,396],[28,397,29,397],[28,380,29,380],[28,381,29,381],[28,382,29,382],[28,383,29,383],[28,384,29,384],[28,385,29,385],[28,386,29,386],[28,387,29,387],[28,388,29,388],[28,371,29,371],[28,372,29,372],[28,373,29,373],[28,374,29,374],[28,375,29,375],[28,376,29,376],[28,377,29,377],[28,378,29,378],[28,379,29,379],[28,362,29,362],[28,363,29,363],[28,364,29,364],[28,365,29,365],[28,366,29,366],[28,367,29,367],[28,368,29,368],[28,369,29,369],[28,370,29,370],[28,353,29,353],[28,354,29,354],[28,355,29,355],[28,356,29,356],[28,357,29,357],[28,358,29,358],[28,359,29,359],[28,360,29,360],[28,361,29,361],[28,344,29,344],[28,345,29,345],[28,346,29,346],[28,347,29,347],[28,348,29,348],[28,349,29,349],[28,350,29,350],[28,351,29,351],[28,352,29,352],[28,335,29,335],[28,336,29,336],[28,337,29,337],[28,338,29,338],[28,339,29,339],[28,340,29,340],[28,341,29,341],[28,342,29,342],[28,343,29,343],[28,326,29,326],[28,327,29,327],[28,328,29,328],[28,329,29,329],[28,330,29,330],[28,331,29,331],[28,332,29,332],[28,333,29,333],[28,334,29,334],[28,317,29,317],[28,318,29,318],[28,319,29,319],[28,320,29,320],[28,321,29,321],[28,322,29,322],[28,323,29,323],[28,324,29,324],[28,325,29,325],[28,311,29,311],[28,312,29,312],[28,313,29,313],[28,314,29,314],[28,315,29,315],[28,316,29,316],[28,305,29,305],[28,306,29,306],[28,307,29,307],[28,308,29,308],[28,309,29,309],[28,310,29,310],[28,299,29,299],[28,300,29,300],[28,301,29,301],[28,302,29,302],[28,303,29,303],[28,304,29,304],[28,293,29,293],[28,294,29,294],[28,295,29,295],[28,296,29,296],[28,297,29,297],[28,298,29,298],[28,287,29,287],[28,288,29,288],[28,289,29,289],[28,290,29,290],[28,291,29,291],[28,292,29,292],[28,281,29,281],[28,282,29,282],[28,283,29,283],[28,284,29,284],[28,285,29,285],[28,286,29,286],[28,275,29,275],[28,276,29,276],[28,277,29,277],[28,278,29,278],[28,279,29,279],[28,280,29,280],[28,269,29,269],[28,270,29,270],[28,271,29,271],[28,272,29,272],[28,273,29,273],[28,274,29,274],[28,263,29,263],[28,264,29,264],[28,265,29,265],[28,266,29,266],[28,267,29,267],[28,268,29,268],[28,257,29,257],[28,258,29,258],[28,259,29,259],[28,260,29,260],[28,261,29,261],[28,262,29,262],[28,251,29,251],[28,252,29,252],[28,253,29,253],[28,254,29,254],[28,255,29,255],[28,256,29,256],[28,245,29,245],[28,246,29,246],[28,247,29,247],[28,248,29,248],[28,249,29,249],[28,250,29,250],[28,239,29,239],[28,240,29,240],[28,241,29,241],[28,242,29,242],[28,243,29,243],[28,244,29,244],[28,233,29,233],[28,234,29,234],[28,235,29,235],[28,236,29,236],[28,237,29,237],[28,238,29,238],[28,227,29,227],[28,228,29,228],[28,229,29,229],[28,230,29,230],[28,231,29,231],[28,232,29,232],[28,221,29,221],[28,222,29,222],[28,223,29,223],[28,224,29,224],[28,225,29,225],[28,226,29,226],[28,215,29,215],[28,216,29,216],[28,217,29,217],[28,218,29,218],[28,219,29,219],[28,220,29,220],[28,209,29,209],[28,210,29,210],[28,211,29,211],[28,212,29,212],[28,213,29,213],[28,214,29,214],[28,203,29,203],[28,204,29,204],[28,205,29,205],[28,206,29,206],[28,207,29,207],[28,208,29,208],[28,197,29,197],[28,198,29,198],[28,199,29,199],[28,200,29,200],[28,201,29,201],[28,202,29,202],[28,191,29,191],[28,192,29,192],[28,193,29,193],[28,194,29,194],[28,195,29,195],[28,196,29,196],[28,185,29,185],[28,186,29,186],[28,187,29,187],[28,188,29,188],[28,189,29,189],[28,190,29,190],[28,179,29,179],[28,180,29,180],[28,181,29,181],[28,182,29,182],[28,183,29,183],[28,184,29,184],[28,173,29,173],[28,174,29,174],[28,175,29,175],[28,176,29,176],[28,177,29,177],[28,178,29,178],[28,167,29,167],[28,168,29,168],[28,169,29,169],[28,170,29,170],[28,171,29,171],[28,172,29,172],[28,161,29,161],[28,162,29,162],[28,163,29,163],[28,164,29,164],[28,165,29,165],[28,166,29,166],[28,155,29,155],[28,156,29,156],[28,157,29,157],[28,158,29,158],[28,159,29,159],[28,160,29,160],[28,149,29,149],[28,150,29,150],[28,151,29,151],[28,152,29,152],[28,153,29,153],[28,154,29,154],[28,143,29,143],[28,144,29,144],[28,145,29,145],[28,146,29,146],[28,147,29,147],[28,148,29,148],[28,137,29,137],[28,138,29,138],[28,139,29,139],[28,140,29,140],[28,141,29,141],[28,142,29,142],[28,131,29,131],[28,132,29,132],[28,133,29,133],[28,134,29,134],[28,135,29,135],[28,136,29,136],[28,125,29,125],[28,126,29,126],[28,127,29,127],[28,128,29,128],[28,129,29,129],[28,130,29,130],[28,119,29,119],[28,120,29,120],[28,121,29,121],[28,122,29,122],[28,123,29,123],[28,124,29,124],[28,113,29,113],[28,114,29,114],[28,115,29,115],[28,116,29,116],[28,117,29,117],[28,118,29,118],[28,107,29,107],[28,108,29,108],[28,109,29,109],[28,110,29,110],[28,111,29,111],[28,112,29,112],[28,101,29,101],[28,102,29,102],[28,103,29,103],[28,104,29,104],[28,105,29,105],[28,106,29,106],[28,95,29,95],[28,96,29,96],[28,97,29,97],[28,98,29,98],[28,99,29,99],[28,100,29,100],[28,89,29,89],[28,90,29,90],[28,91,29,91],[28,92,29,92],[28,93,29,93],[28,94,29,94],[28,83,29,83],[28,84,29,84],[28,85,29,85],[28,86,29,86],[28,87,29,87],[28,88,29,88],[28,77,29,77],[28,78,29,78],[28,79,29,79],[28,80,29,80],[28,81,29,81],[28,82,29,82],[28,71,29,71],[28,72,29,72],[28,73,29,73],[28,74,29,74],[28,75,29,75],[28,76,29,76],[28,65,29,65],[28,66,29,66],[28,67,29,67],[28,68,29,68],[28,69,29,69],[28,70,29,70],[28,59,29,59],[28,60,29,60],[28,61,29,61],[28,62,29,62],[28,63,29,63],[28,64,29,64],[28,53,29,53],[28,54,29,54],[28,55,29,55],[28,56,29,56],[28,57,29,57],[28,58,29,58],[28,47,29,47],[28,48,29,48],[28,49,29,49],[28,50,29,50],[28,51,29,51],[28,52,29,52],[28,41,29,41],[28,42,29,42],[28,43,29,43],[28,44,29,44],[28,45,29,45],[28,46,29,46],[28,35,29,35],[28,36,29,36],[28,37,29,37],[28,38,29,38],[28,39,29,39],[28,40,29,40],[28,29,29,29],[28,30,29,30],[28,31,29,31],[28,32,29,32],[28,33,29,33],[28,34,29,34],[28,23,29,23],[28,24,29,24],[28,25,29,25],[28,26,29,26],[28,27,29,27],[28,28,29,28],[28,17,29,17],[28,18,29,18],[28,19,29,19],[28,20,29,20],[28,21,29,21],[28,22,29,22],[28,11,29,11],[28,12,29,12],[28,13,29,13],[28,14,29,14],[28,15,29,15],[28,16,29,16],[28,5,29,5],[28,6,29,6],[28,7,29,7],[28,8,29,8],[28,9,29,9],[28,10,29,10]]}
[null,null,null,null,null,{"$f":"TODAY()-731","v":"2020-02-02"},{"$f":"TODAY()+3","v":"2022-02-05"},null,null,null,null,null,null,null,null,null,null,null,null,null,null,null,null,null,null,null,null,null,null,null,null,null,null,null,null,null,null,null,null,null,null,null,null,null,null,null,null,null,null,null,null,null,null,null,null,null,null,null,null,null,null,null,null,null,null,null,null,null,null,null,null,null,null,null,null,null,null,null,null,null,null,null,null,null,null,null,null,null,null,null,null,null,null,null,null,null,null,null,null,null,null,null,null,null,null,null,null,null,null,null,null,null,null,null,null,null,null,null,null,null,null,null,null,null,null,null,null,null,null,null,null,null,null,null,null,null,null,null,null,null,null,null,null,null,null,null,null,null,null,null,null,null,null,null,null,null,null,null,null,null,null,null,null,null,null,null,null,null,null,null,null,null,null,null,null,null,null,null,null,null,null,null,null,null,null,null,null,null,null,null,null,null,null,null,null,null,null,null,null,null,null,null,null,null,null,null,null,null,null,null,null,null,null,null,null,null,null,null,null,null,null,null,null,null,null,null,null,null,null,null,null,null,null,null,null,null,null,null,null,null,null,null,null,null,null,null,null,null,null,null,null,null,null,null,null,{"$f":"TODAY()-731","v":"2020-02-02"},{"$f":"TODAY()+3","v":"2022-02-05"},null,null,null,null,null,null,null,null,null,null,null,null,null,null,null,null,null,null,null,null,null,null,null,null,null,null,null,null,null,null,null,null,null,null,null,null,null,null,null,null,null,null,null,null,null,null,null,null,null,null,null,null,null,null,null,null,null,null,null,null,null,null,null,null,null,null,null,null,null,null,null,null,null,null,null,null,null,null,null,null,null,null,null,null,null,null,null,null,null,null,null,null,null,null,null,null,null,null,null,null,null,null,null,null,null,null,null,null,null,null,null,null,null,null,null,null,null,null,null,null,null,null,null,null,null,null,null,null,null,null,null,null,null,null,null,null,null,null,null,null,null,null,null,null,null,null,null,null,null,null,null,null,null,null,null,null,null,null,null,null,null,null,null,null,null,null,null,null,null,null,null,null,null,null,null,null,null,null,null,null,null,null,null,null,null,null,null,null,null,null,null,null,null,null,null,null,null,null,null,null,null,null,null,null,null,null,null,null,null,null,null,null,null,null,null,null,null,null,null,null,null,null,null,null,null,null,null,null,null,null,null,null,null,null,null,null,null,null,null,null,null,null,null,null,null,null,null,null,{"$f":"TODAY()-731","v":"2020-02-02"},{"$f":"TODAY()+3","v":"2022-02-05"},null,null,null,null,null,null,null,null,null,null,null,null,null,null,null,null,null,null,null,null,null,null,null,null,null,null,null,null,null,null,null,null,null,null,null,null,null,null,null,null,null,null,null,null,null,null,null,null,null,null,null,null,null,null,null,null,null,null,null,null,null,null,null,null,null,null,null,null,null,null,null,null,null,null,null,null,null,null,null,null,null,null,null,null,null,null,null,null,null,null,null,null,null,null,null,null,null,null,null,null,null,null,null,null,null,null,null,null,null,null,null,null,null,null,null,null,null,null,null,null,null,null,null,null,null,null,null,null,null,null,null,null,null,null,null,null,null,null,null,null,null,null,null,null,null,null,null,null,null,null,null,null,null,null,null,null,null,null,null,null,null,null,null,null,null,null,null,null,null,null,null,null,null,null,null,null,null,null,null,null,null,null,null,null,null,null,null,null,null,null,null,null,null,null,null,null,null,null,null,null,null,null,null,null,null,null,null,null,null,null,null,null,null,null,null,null,null,null,null,null,null,null,null,null,null,null,null,null,null,null,null,null,null,null,null,null,null,null,null,null,null,null,null,null,null,null,null,null,{"$f":"TODAY()-731","v":"2020-02-02"},{"$f":"TODAY()+3","v":"2022-02-05"}]
[]
[null,null,null,"ANQ riga ZU (dati supplementari)"]
[null,null,null,"FID ",null,{"$f":"IF(AND(COUNT(F15:F29)=0,ISBLANK(F11),ISBLANK(F12)),\"\",IF(ISBLANK(F11),\"Manca n. id. caso\",IF(COUNTIF($F11:$IU11,F11)>1,\"DOPPIONE\",1)))","v":""},"","","","","","","","","","","","","","","","","","","","","","","","","","","","","","","","","","","","","","","","","","","","","","","","","","","","","","","","","","","","","","","",{"$f":"IF(AND(COUNT(BR15:BR29)=0,ISBLANK(BR11),ISBLANK(BR12)),\"\",IF(ISBLANK(BR11),\"Manca n. id. caso\",IF(COUNTIF($F11:$IU11,BR11)>1,\"DOPPIONE\",1)))","v":""},"","","","","","","","","","","","","","","","","","","","","","","","","","","","","","","","","","","","","","","","","","","","","","","","","","","","","","","","","","","","","","","",{"$f":"IF(AND(COUNT(ED15:ED29)=0,ISBLANK(ED11),ISBLANK(ED12)),\"\",IF(ISBLANK(ED11),\"Manca n. id. caso\",IF(COUNTIF($F11:$IU11,ED11)>1,\"DOPPIONE\",1)))","v":""},"","","","","","","","","","","","","","","","","","","","","","","","","","","","","","","","","","","","","","","","","","","","","","","","","","","","","","","","","","","","","","","",{"$f":"IF(AND(COUNT(GP15:GP29)=0,ISBLANK(GP11),ISBLANK(GP12)),\"\",IF(ISBLANK(GP11),\"Manca n. id. caso\",IF(COUNTIF($F11:$IU11,GP11)>1,\"DOPPIONE\",1)))","v":""},"","","","","","","","","","","","","","","","","","","","","","","","","","","","","","","","","","","","","","","","","","","","","","","","","","","","","","","","","","","","","","","",{"$f":"IF(AND(COUNT(JB15:JB29)=0,ISBLANK(JB11),ISBLANK(JB12)),\"\",IF(ISBLANK(JB11),\"Manca n. id. caso\",IF(COUNTIF($F11:$IU11,JB11)>1,\"DOPPIONE\",1)))","v":""},"","","","","","","","","","","","","","","","","","","","","","","","","","","","","","","","","","","","","","","","","","","","","","","","","","","","","","","","","","","","","","","",{"$f":"IF(AND(COUNT(LN15:LN29)=0,ISBLANK(LN11),ISBLANK(LN12)),\"\",IF(ISBLANK(LN11),\"Manca n. id. caso\",IF(COUNTIF($F11:$IU11,LN11)>1,\"DOPPIONE\",1)))","v":""},"","","","","","","","","","","","","","","","","","","","","","","","","","","","","","","","","","","","","","","","","","","","","","","","","","","","","","","","","","","","","","","",{"$f":"IF(AND(COUNT(NZ15:NZ29)=0,ISBLANK(NZ11),ISBLANK(NZ12)),\"\",IF(ISBLANK(NZ11),\"Manca n. id. caso\",IF(COUNTIF($F11:$IU11,NZ11)>1,\"DOPPIONE\",1)))","v":""},"","","","","","","","","","","","","","","","","","","","","","","","","","","","","","","","","","","","","","","","","","","","","","","","","","","","","","","","","","","","","","","",{"$f":"IF(AND(COUNT(QL15:QL29)=0,ISBLANK(QL11),ISBLANK(QL12)),\"\",IF(ISBLANK(QL11),\"Manca n. id. caso\",IF(COUNTIF($F11:$IU11,QL11)>1,\"DOPPIONE\",1)))","v":""},"","","","","","","","","","","","","","","","","","","","","","","","","","","","","","","","","","","","","","","","","","","","","","","","","","","","","","","","","","","","","","","",{"$f":"IF(AND(COUNT(SX15:SX29)=0,ISBLANK(SX11),ISBLANK(SX12)),\"\",IF(ISBLANK(SX11),\"Manca n. id. caso\",IF(COUNTIF($F11:$IU11,SX11)>1,\"DOPPIONE\",1)))","v":""},"","","","","","","","","","","","","","","","","","","","","","","","","","","","","","","","","","","","","","","","","","","","","","","","","","","","","","","","","","","","","","","",{"$f":"IF(AND(COUNT(VJ15:VJ29)=0,ISBLANK(VJ11),ISBLANK(VJ12)),\"\",IF(ISBLANK(VJ11),\"Manca n. id. caso\",IF(COUNTIF($F11:$IU11,VJ11)>1,\"DOPPIONE\",1)))","v":""},"","","","","","","","","","","","","","","","","","","","","","","","","","","","","","","","","","","","","","","","","","","","","","","","","","","","","","","","","","","","","","","",{"$f":"IF(AND(COUNT(XV15:XV29)=0,ISBLANK(XV11),ISBLANK(XV12)),\"\",IF(ISBLANK(XV11),\"Manca n. id. caso\",IF(COUNTIF($F11:$IU11,XV11)>1,\"DOPPIONE\",1)))","v":""},"","","","","","","","","","","","","","","","","","","","","","","","","","","","","","","","","","","","","","","","","","","","","","","","","","","","","","","","","","","","","","","",{"$f":"IF(AND(COUNT(AAH15:AAH29)=0,ISBLANK(AAH11),ISBLANK(AAH12)),\"\",IF(ISBLANK(AAH11),\"Manca n. id. caso\",IF(COUNTIF($F11:$IU11,AAH11)>1,\"DOPPIONE\",1)))","v":""},"","","","","","","","","","","","","","","","","","","","","","","","","","","","","","","","","","","","","","","","","","","","","","","","","","","","","","","","","","","","","","","",{"$f":"IF(AND(COUNT(ACT15:ACT29)=0,ISBLANK(ACT11),ISBLANK(ACT12)),\"\",IF(ISBLANK(ACT11),\"Manca n. id. caso\",IF(COUNTIF($F11:$IU11,ACT11)>1,\"DOPPIONE\",1)))","v":""},"","","","","","","","","","","","","","","","","","","","","","","","","","","","","","","","","","","","","","","","","","","","","","","","","","","","","","","","","","","","","","","",{"$f":"IF(AND(COUNT(AFF15:AFF29)=0,ISBLANK(AFF11),ISBLANK(AFF12)),\"\",IF(ISBLANK(AFF11),\"Manca n. id. caso\",IF(COUNTIF($F11:$IU11,AFF11)>1,\"DOPPIONE\",1)))","v":""},"","","","","","","","","","","","","","","","","","","","","","","","","","","","","","","","","","","","","","","","","","","","","","","","","","","","","","","","","","","","","","","",{"$f":"IF(AND(COUNT(AHR15:AHR29)=0,ISBLANK(AHR11),ISBLANK(AHR12)),\"\",IF(ISBLANK(AHR11),\"Manca n. id. caso\",IF(COUNTIF($F11:$IU11,AHR11)>1,\"DOPPIONE\",1)))","v":""},"","","","","","","","","","","","","","","","","","","","","","","","","","","","","","","","","","","","","","","","","","","","","","","","","","","","","","","","","","","","","","","",{"$f":"IF(AND(COUNT(AKD15:AKD29)=0,ISBLANK(AKD11),ISBLANK(AKD12)),\"\",IF(ISBLANK(AKD11),\"Manca n. id. caso\",IF(COUNTIF($F11:$IU11,AKD11)>1,\"DOPPIONE\",1)))","v":""},"","","","","","","","","","","","","","","","","","","","","","","","","","","","","","","","","","","","","","",""]
[null,null,null,"Blocco ammissione [7.1] ◄ ",null,{"$f":"IF(AND(COUNT(F15:F29)=0,ISBLANK(F11),ISBLANK(F12)),\"\",IF(OR(ISBLANK(F11),ISBLANK(F12)),\"◄ Controllare\",1))","v":""},"","","","","","","","","","","","","","","","","","","","","","","","","","","","","","","","","","","","","","","","","","","","","","","","","","","","","","","","","","","","","","","",{"$f":"IF(AND(COUNT(BR15:BR29)=0,ISBLANK(BR11),ISBLANK(BR12)),\"\",IF(OR(ISBLANK(BR11),ISBLANK(BR12)),\"◄ Controllare\",1))","v":""},"","","","","","","","","","","","","","","","","","","","","","","","","","","","","","","","","","","","","","","","","","","","","","","","","","","","","","","","","","","","","","","",{"$f":"IF(AND(COUNT(ED15:ED29)=0,ISBLANK(ED11),ISBLANK(ED12)),\"\",IF(OR(ISBLANK(ED11),ISBLANK(ED12)),\"◄ Controllare\",1))","v":""},"","","","","","","","","","","","","","","","","","","","","","","","","","","","","","","","","","","","","","","","","","","","","","","","","","","","","","","","","","","","","","","",{"$f":"IF(AND(COUNT(GP15:GP29)=0,ISBLANK(GP11),ISBLANK(GP12)),\"\",IF(OR(ISBLANK(GP11),ISBLANK(GP12)),\"◄ Controllare\",1))","v":""},"","","","","","","","","","","","","","","","","","","","","","","","","","","","","","","","","","","","","","","","","","","","","","","","","","","","","","","","","","","","","","","",{"$f":"IF(AND(COUNT(JB15:JB29)=0,ISBLANK(JB11),ISBLANK(JB12)),\"\",IF(OR(ISBLANK(JB11),ISBLANK(JB12)),\"◄ Controllare\",1))","v":""},"","","","","","","","","","","","","","","","","","","","","","","","","","","","","","","","","","","","","","","","","","","","","","","","","","","","","","","","","","","","","","","",{"$f":"IF(AND(COUNT(LN15:LN29)=0,ISBLANK(LN11),ISBLANK(LN12)),\"\",IF(OR(ISBLANK(LN11),ISBLANK(LN12)),\"◄ Controllare\",1))","v":""},"","","","","","","","","","","","","","","","","","","","","","","","","","","","","","","","","","","","","","","","","","","","","","","","","","","","","","","","","","","","","","","",{"$f":"IF(AND(COUNT(NZ15:NZ29)=0,ISBLANK(NZ11),ISBLANK(NZ12)),\"\",IF(OR(ISBLANK(NZ11),ISBLANK(NZ12)),\"◄ Controllare\",1))","v":""},"","","","","","","","","","","","","","","","","","","","","","","","","","","","","","","","","","","","","","","","","","","","","","","","","","","","","","","","","","","","","","","",{"$f":"IF(AND(COUNT(QL15:QL29)=0,ISBLANK(QL11),ISBLANK(QL12)),\"\",IF(OR(ISBLANK(QL11),ISBLANK(QL12)),\"◄ Controllare\",1))","v":""},"","","","","","","","","","","","","","","","","","","","","","","","","","","","","","","","","","","","","","","","","","","","","","","","","","","","","","","","","","","","","","","",{"$f":"IF(AND(COUNT(SX15:SX29)=0,ISBLANK(SX11),ISBLANK(SX12)),\"\",IF(OR(ISBLANK(SX11),ISBLANK(SX12)),\"◄ Controllare\",1))","v":""},"","","","","","","","","","","","","","","","","","","","","","","","","","","","","","","","","","","","","","","","","","","","","","","","","","","","","","","","","","","","","","","",{"$f":"IF(AND(COUNT(VJ15:VJ29)=0,ISBLANK(VJ11),ISBLANK(VJ12)),\"\",IF(OR(ISBLANK(VJ11),ISBLANK(VJ12)),\"◄ Controllare\",1))","v":""},"","","","","","","","","","","","","","","","","","","","","","","","","","","","","","","","","","","","","","","","","","","","","","","","","","","","","","","","","","","","","","","",{"$f":"IF(AND(COUNT(XV15:XV29)=0,ISBLANK(XV11),ISBLANK(XV12)),\"\",IF(OR(ISBLANK(XV11),ISBLANK(XV12)),\"◄ Controllare\",1))","v":""},"","","","","","","","","","","","","","","","","","","","","","","","","","","","","","","","","","","","","","","","","","","","","","","","","","","","","","","","","","","","","","","",{"$f":"IF(AND(COUNT(AAH15:AAH29)=0,ISBLANK(AAH11),ISBLANK(AAH12)),\"\",IF(OR(ISBLANK(AAH11),ISBLANK(AAH12)),\"◄ Controllare\",1))","v":""},"","","","","","","","","","","","","","","","","","","","","","","","","","","","","","","","","","","","","","","","","","","","","","","","","","","","","","","","","","","","","","","",{"$f":"IF(AND(COUNT(ACT15:ACT29)=0,ISBLANK(ACT11),ISBLANK(ACT12)),\"\",IF(OR(ISBLANK(ACT11),ISBLANK(ACT12)),\"◄ Controllare\",1))","v":""},"","","","","","","","","","","","","","","","","","","","","","","","","","","","","","","","","","","","","","","","","","","","","","","","","","","","","","","","","","","","","","","",{"$f":"IF(AND(COUNT(AFF15:AFF29)=0,ISBLANK(AFF11),ISBLANK(AFF12)),\"\",IF(OR(ISBLANK(AFF11),ISBLANK(AFF12)),\"◄ Controllare\",1))","v":""},"","","","","","","","","","","","","","","","","","","","","","","","","","","","","","","","","","","","","","","","","","","","","","","","","","","","","","","","","","","","","","","",{"$f":"IF(AND(COUNT(AHR15:AHR29)=0,ISBLANK(AHR11),ISBLANK(AHR12)),\"\",IF(OR(ISBLANK(AHR11),ISBLANK(AHR12)),\"◄ Controllare\",1))","v":""},"","","","","","","","","","","","","","","","","","","","","","","","","","","","","","","","","","","","","","","","","","","","","","","","","","","","","","","","","","","","","","","",{"$f":"IF(AND(COUNT(AKD15:AKD29)=0,ISBLANK(AKD11),ISBLANK(AKD12)),\"\",IF(OR(ISBLANK(AKD11),ISBLANK(AKD12)),\"◄ Controllare\",1))","v":""},"","","","","","","","","","","","","","","","","","","","","","","","","","","","","","","","","","","","","","",""]
[null,null,null,"CIRS [7.2] ◄ ",null,{"$f":"IF(AND(COUNT(F15:F29)=0,ISBLANK(F11),ISBLANK(F12)),\"\",IF(COUNT(F15:F29)=0,\"◄ Compilare\",IF(COUNT(F15:F29)<15,\"◄ Controllare\",1)))","v":""},"","","","","","","","","","","","","","","","","","","","","","","","","","","","","","","","","","","","","","","","","","","","","","","","","","","","","","","","","","","","","","","",{"$f":"IF(AND(COUNT(BR15:BR29)=0,ISBLANK(BR11),ISBLANK(BR12)),\"\",IF(COUNT(BR15:BR29)=0,\"◄ Compilare\",IF(COUNT(BR15:BR29)<15,\"◄ Controllare\",1)))","v":""},"","","","","","","","","","","","","","","","","","","","","","","","","","","","","","","","","","","","","","","","","","","","","","","","","","","","","","","","","","","","","","","",{"$f":"IF(AND(COUNT(ED15:ED29)=0,ISBLANK(ED11),ISBLANK(ED12)),\"\",IF(COUNT(ED15:ED29)=0,\"◄ Compilare\",IF(COUNT(ED15:ED29)<15,\"◄ Controllare\",1)))","v":""},"","","","","","","","","","","","","","","","","","","","","","","","","","","","","","","","","","","","","","","","","","","","","","","","","","","","","","","","","","","","","","","",{"$f":"IF(AND(COUNT(GP15:GP29)=0,ISBLANK(GP11),ISBLANK(GP12)),\"\",IF(COUNT(GP15:GP29)=0,\"◄ Compilare\",IF(COUNT(GP15:GP29)<15,\"◄ Controllare\",1)))","v":""},"","","","","","","","","","","","","","","","","","","","","","","","","","","","","","","","","","","","","","","","","","","","","","","","","","","","","","","","","","","","","","","",{"$f":"IF(AND(COUNT(JB15:JB29)=0,ISBLANK(JB11),ISBLANK(JB12)),\"\",IF(COUNT(JB15:JB29)=0,\"◄ Compilare\",IF(COUNT(JB15:JB29)<15,\"◄ Controllare\",1)))","v":""},"","","","","","","","","","","","","","","","","","","","","","","","","","","","","","","","","","","","","","","","","","","","","","","","","","","","","","","","","","","","","","","",{"$f":"IF(AND(COUNT(LN15:LN29)=0,ISBLANK(LN11),ISBLANK(LN12)),\"\",IF(COUNT(LN15:LN29)=0,\"◄ Compilare\",IF(COUNT(LN15:LN29)<15,\"◄ Controllare\",1)))","v":""},"","","","","","","","","","","","","","","","","","","","","","","","","","","","","","","","","","","","","","","","","","","","","","","","","","","","","","","","","","","","","","","",{"$f":"IF(AND(COUNT(NZ15:NZ29)=0,ISBLANK(NZ11),ISBLANK(NZ12)),\"\",IF(COUNT(NZ15:NZ29)=0,\"◄ Compilare\",IF(COUNT(NZ15:NZ29)<15,\"◄ Controllare\",1)))","v":""},"","","","","","","","","","","","","","","","","","","","","","","","","","","","","","","","","","","","","","","","","","","","","","","","","","","","","","","","","","","","","","","",{"$f":"IF(AND(COUNT(QL15:QL29)=0,ISBLANK(QL11),ISBLANK(QL12)),\"\",IF(COUNT(QL15:QL29)=0,\"◄ Compilare\",IF(COUNT(QL15:QL29)<15,\"◄ Controllare\",1)))","v":""},"","","","","","","","","","","","","","","","","","","","","","","","","","","","","","","","","","","","","","","","","","","","","","","","","","","","","","","","","","","","","","","",{"$f":"IF(AND(COUNT(SX15:SX29)=0,ISBLANK(SX11),ISBLANK(SX12)),\"\",IF(COUNT(SX15:SX29)=0,\"◄ Compilare\",IF(COUNT(SX15:SX29)<15,\"◄ Controllare\",1)))","v":""},"","","","","","","","","","","","","","","","","","","","","","","","","","","","","","","","","","","","","","","","","","","","","","","","","","","","","","","","","","","","","","","",{"$f":"IF(AND(COUNT(VJ15:VJ29)=0,ISBLANK(VJ11),ISBLANK(VJ12)),\"\",IF(COUNT(VJ15:VJ29)=0,\"◄ Compilare\",IF(COUNT(VJ15:VJ29)<15,\"◄ Controllare\",1)))","v":""},"","","","","","","","","","","","","","","","","","","","","","","","","","","","","","","","","","","","","","","","","","","","","","","","","","","","","","","","","","","","","","","",{"$f":"IF(AND(COUNT(XV15:XV29)=0,ISBLANK(XV11),ISBLANK(XV12)),\"\",IF(COUNT(XV15:XV29)=0,\"◄ Compilare\",IF(COUNT(XV15:XV29)<15,\"◄ Controllare\",1)))","v":""},"","","","","","","","","","","","","","","","","","","","","","","","","","","","","","","","","","","","","","","","","","","","","","","","","","","","","","","","","","","","","","","",{"$f":"IF(AND(COUNT(AAH15:AAH29)=0,ISBLANK(AAH11),ISBLANK(AAH12)),\"\",IF(COUNT(AAH15:AAH29)=0,\"◄ Compilare\",IF(COUNT(AAH15:AAH29)<15,\"◄ Controllare\",1)))","v":""},"","","","","","","","","","","","","","","","","","","","","","","","","","","","","","","","","","","","","","","","","","","","","","","","","","","","","","","","","","","","","","","",{"$f":"IF(AND(COUNT(ACT15:ACT29)=0,ISBLANK(ACT11),ISBLANK(ACT12)),\"\",IF(COUNT(ACT15:ACT29)=0,\"◄ Compilare\",IF(COUNT(ACT15:ACT29)<15,\"◄ Controllare\",1)))","v":""},"","","","","","","","","","","","","","","","","","","","","","","","","","","","","","","","","","","","","","","","","","","","","","","","","","","","","","","","","","","","","","","",{"$f":"IF(AND(COUNT(AFF15:AFF29)=0,ISBLANK(AFF11),ISBLANK(AFF12)),\"\",IF(COUNT(AFF15:AFF29)=0,\"◄ Compilare\",IF(COUNT(AFF15:AFF29)<15,\"◄ Controllare\",1)))","v":""},"","","","","","","","","","","","","","","","","","","","","","","","","","","","","","","","","","","","","","","","","","","","","","","","","","","","","","","","","","","","","","","",{"$f":"IF(AND(COUNT(AHR15:AHR29)=0,ISBLANK(AHR11),ISBLANK(AHR12)),\"\",IF(COUNT(AHR15:AHR29)=0,\"◄ Compilare\",IF(COUNT(AHR15:AHR29)<15,\"◄ Controllare\",1)))","v":""},"","","","","","","","","","","","","","","","","","","","","","","","","","","","","","","","","","","","","","","","","","","","","","","","","","","","","","","","","","","","","","","",{"$f":"IF(AND(COUNT(AKD15:AKD29)=0,ISBLANK(AKD11),ISBLANK(AKD12)),\"\",IF(COUNT(AKD15:AKD29)=0,\"◄ Compilare\",IF(COUNT(AKD15:AKD29)<15,\"◄ Controllare\",1)))","v":""},"","","","","","","","","","","","","","","","","","","","","","","","","","","","","","","","","","","","","","",""]
[null,null,null,"Controllo immissione ",null,{"$f":"IF(AND(F4=1,F5=1,F6=1),\"☺\",\"\")","v":""},{"$f":"IF(AND(G4=1,G5=1,G6=1),\"☺\",\"\")","v":""},"","","","","","","","","","","","","","","","","","","","","","","","","","","","","","","","","","","","","","","","","","","","","","","","","","","","","","","","","","","","","","","",{"$f":"IF(AND(BS4=1,BS5=1,BS6=1),\"☺\",\"\")","v":""},"","","","","","","","","","","","","","","","","","","","","","","","","","","","","","","","","","","","","","","","","","","","","","","","","","","","","","","","","","","","","","","",{"$f":"IF(AND(EE4=1,EE5=1,EE6=1),\"☺\",\"\")","v":""},"","","","","","","","","","","","","","","","","","","","","","","","","","","","","","","","","","","","","","","","","","","","","","","","","","","","","","","","","","","","","","","",{"$f":"IF(AND(GQ4=1,GQ5=1,GQ6=1),\"☺\",\"\")","v":""},"","","","","","","","","","","","","","","","","","","","","","","","","","","","","","","","","","","","","","","","","","","","","","","","","","","","","","","","","","","","","","","",{"$f":"IF(AND(JC4=1,JC5=1,JC6=1),\"☺\",\"\")","v":""},"","","","","","","","","","","","","","","","","","","","","","","","","","","","","","","","","","","","","","","","","","","","","","","","","","","","","","","","","","","","","","","",{"$f":"IF(AND(LO4=1,LO5=1,LO6=1),\"☺\",\"\")","v":""},"","","","","","","","","","","","","","","","","","","","","","","","","","","","","","","","","","","","","","","","","","","","","","","","","","","","","","","","","","","","","","","",{"$f":"IF(AND(OA4=1,OA5=1,OA6=1),\"☺\",\"\")","v":""},"","","","","","","","","","","","","","","","","","","","","","","","","","","","","","","","","","","","","","","","","","","","","","","","","","","","","","","","","","","","","","","",{"$f":"IF(AND(QM4=1,QM5=1,QM6=1),\"☺\",\"\")","v":""},"","","","","","","","","","","","","","","","","","","","","","","","","","","","","","","","","","","","","","","","","","","","","","","","","","","","","","","","","","","","","","","",{"$f":"IF(AND(SY4=1,SY5=1,SY6=1),\"☺\",\"\")","v":""},"","","","","","","","","","","","","","","","","","","","","","","","","","","","","","","","","","","","","","","","","","","","","","","","","","","","","","","","","","","","","","","",{"$f":"IF(AND(VK4=1,VK5=1,VK6=1),\"☺\",\"\")","v":""},"","","","","","","","","","","","","","","","","","","","","","","","","","","","","","","","","","","","","","","","","","","","","","","","","","","","","","","","","","","","","","","",{"$f":"IF(AND(XW4=1,XW5=1,XW6=1),\"☺\",\"\")","v":""},"","","","","","","","","","","","","","","","","","","","","","","","","","","","","","","","","","","","","","","","","","","","","","","","","","","","","","","","","","","","","","","",{"$f":"IF(AND(AAI4=1,AAI5=1,AAI6=1),\"☺\",\"\")","v":""},"","","","","","","","","","","","","","","","","","","","","","","","","","","","","","","","","","","","","","","","","","","","","","","","","","","","","","","","","","","","","","","",{"$f":"IF(AND(ACU4=1,ACU5=1,ACU6=1),\"☺\",\"\")","v":""},"","","","","","","","","","","","","","","","","","","","","","","","","","","","","","","","","","","","","","","","","","","","","","","","","","","","","","","","","","","","","","","",{"$f":"IF(AND(AFG4=1,AFG5=1,AFG6=1),\"☺\",\"\")","v":""},"","","","","","","","","","","","","","","","","","","","","","","","","","","","","","","","","","","","","","","","","","","","","","","","","","","","","","","","","","","","","","","",{"$f":"IF(AND(AHS4=1,AHS5=1,AHS6=1),\"☺\",\"\")","v":""},"","","","","","","","","","","","","","","","","","","","","","","","","","","","","","","","","","","","","","","","","","","","","","","","","","","","","","","","","","","","","","","",{"$f":"IF(AND(AKE4=1,AKE5=1,AKE6=1),\"☺\",\"\")","v":""},"","","","","","","","","","","","","","","","","","","","","","","","","","","","","","","","","","","","","",""]
[]
[null,"2.1.",null,"Blocco ammissione",null,"▼ Immissione ▼","▼ Immissione ▼","▼ Immissione ▼","▼ Immissione ▼","▼ Immissione ▼","▼ Immissione ▼","▼ Immissione ▼","▼ Immissione ▼","▼ Immissione ▼","▼ Immissione ▼","▼ Immissione ▼","▼ Immissione ▼","▼ Immissione ▼","▼ Immissione ▼","▼ Immissione ▼","▼ Immissione ▼","▼ Immissione ▼","▼ Immissione ▼","▼ Immissione ▼","▼ Immissione ▼","▼ Immissione ▼","▼ Immissione ▼","▼ Immissione ▼","▼ Immissione ▼","▼ Immissione ▼","▼ Immissione ▼","▼ Immissione ▼","▼ Immissione ▼","▼ Immissione ▼","▼ Immissione ▼","▼ Immissione ▼","▼ Immissione ▼","▼ Immissione ▼","▼ Immissione ▼","▼ Immissione ▼","▼ Immissione ▼","▼ Immissione ▼","▼ Immissione ▼","▼ Immissione ▼","▼ Immissione ▼","▼ Immissione ▼","▼ Immissione ▼","▼ Immissione ▼","▼ Immissione ▼","▼ Immissione ▼","▼ Immissione ▼","▼ Immissione ▼","▼ Immissione ▼","▼ Immissione ▼","▼ Immissione ▼","▼ Immissione ▼","▼ Immissione ▼","▼ Immissione ▼","▼ Immissione ▼","▼ Immissione ▼","▼ Immissione ▼","▼ Immissione ▼","▼ Immissione ▼","▼ Immissione ▼","▼ Immissione ▼","▼ Immissione ▼","▼ Immissione ▼","▼ Immissione ▼","▼ Immissione ▼","▼ Immissione ▼","▼ Immissione ▼","▼ Immissione ▼","▼ Immissione ▼","▼ Immissione ▼","▼ Immissione ▼","▼ Immissione ▼","▼ Immissione ▼","▼ Immissione ▼","▼ Immissione ▼","▼ Immissione ▼","▼ Immissione ▼","▼ Immissione ▼","▼ Immissione ▼","▼ Immissione ▼","▼ Immissione ▼","▼ Immissione ▼","▼ Immissione ▼","▼ Immissione ▼","▼ Immissione ▼","▼ Immissione ▼","▼ Immissione ▼","▼ Immissione ▼","▼ Immissione ▼","▼ Immissione ▼","▼ Immissione ▼","▼ Immissione ▼","▼ Immissione ▼","▼ Immissione ▼","▼ Immissione ▼","▼ Immissione ▼","▼ Immissione ▼","▼ Immissione ▼","▼ Immissione ▼","▼ Immissione ▼","▼ Immissione ▼","▼ Immissione ▼","▼ Immissione ▼","▼ Immissione ▼","▼ Immissione ▼","▼ Immissione ▼","▼ Immissione ▼","▼ Immissione ▼","▼ Immissione ▼","▼ Immissione ▼","▼ Immissione ▼","▼ Immissione ▼","▼ Immissione ▼","▼ Immissione ▼","▼ Immissione ▼","▼ Immissione ▼","▼ Immissione ▼","▼ Immissione ▼","▼ Immissione ▼","▼ Immissione ▼","▼ Immissione ▼","▼ Immissione ▼","▼ Immissione ▼","▼ Immissione ▼","▼ Immissione ▼","▼ Immissione ▼","▼ Immissione ▼","▼ Immissione ▼","▼ Immissione ▼","▼ Immissione ▼","▼ Immissione ▼","▼ Immissione ▼","▼ Immissione ▼","▼ Immissione ▼","▼ Immissione ▼","▼ Immissione ▼","▼ Immissione ▼","▼ Immissione ▼","▼ Immissione ▼","▼ Immissione ▼","▼ Immissione ▼","▼ Immissione ▼","▼ Immissione ▼","▼ Immissione ▼","▼ Immissione ▼","▼ Immissione ▼","▼ Immissione ▼","▼ Immissione ▼","▼ Immissione ▼","▼ Immissione ▼","▼ Immissione ▼","▼ Immissione ▼","▼ Immissione ▼","▼ Immissione ▼","▼ Immissione ▼","▼ Immissione ▼","▼ Immissione ▼","▼ Immissione ▼","▼ Immissione ▼","▼ Immissione ▼","▼ Immissione ▼","▼ Immissione ▼","▼ Immissione ▼","▼ Immissione ▼","▼ Immissione ▼","▼ Immissione ▼","▼ Immissione ▼","▼ Immissione ▼","▼ Immissione ▼","▼ Immissione ▼","▼ Immissione ▼","▼ Immissione ▼","▼ Immissione ▼","▼ Immissione ▼","▼ Immissione ▼","▼ Immissione ▼","▼ Immissione ▼","▼ Immissione ▼","▼ Immissione ▼","▼ Immissione ▼","▼ Immissione ▼","▼ Immissione ▼","▼ Immissione ▼","▼ Immissione ▼","▼ Immissione ▼","▼ Immissione ▼","▼ Immissione ▼","▼ Immissione ▼","▼ Immissione ▼","▼ Immissione ▼","▼ Immissione ▼","▼ Immissione ▼","▼ Immissione ▼","▼ Immissione ▼","▼ Immissione ▼","▼ Immissione ▼","▼ Immissione ▼","▼ Immissione ▼","▼ Immissione ▼","▼ Immissione ▼","▼ Immissione ▼","▼ Immissione ▼","▼ Immissione ▼","▼ Immissione ▼","▼ Immissione ▼","▼ Immissione ▼","▼ Immissione ▼","▼ Immissione ▼","▼ Immissione ▼","▼ Immissione ▼","▼ Immissione ▼","▼ Immissione ▼","▼ Immissione ▼","▼ Immissione ▼","▼ Immissione ▼","▼ Immissione ▼","▼ Immissione ▼","▼ Immissione ▼","▼ Immissione ▼","▼ Immissione ▼","▼ Immissione ▼","▼ Immissione ▼","▼ Immissione ▼","▼ Immissione ▼","▼ Immissione ▼","▼ Immissione ▼","▼ Immissione ▼","▼ Immissione ▼","▼ Immissione ▼","▼ Immissione ▼","▼ Immissione ▼","▼ Immissione ▼","▼ Immissione ▼","▼ Immissione ▼","▼ Immissione ▼","▼ Immissione ▼","▼ Immissione ▼","▼ Immissione ▼","▼ Immissione ▼","▼ Immissione ▼","▼ Immissione ▼","▼ Immissione ▼","▼ Immissione ▼","▼ Immissione ▼","▼ Immissione ▼","▼ Immissione ▼","▼ Immissione ▼","▼ Immissione ▼","▼ Immissione ▼","▼ Immissione ▼","▼ Immissione ▼","▼ Immissione ▼",3,"▼ Immissione ▼","▼ Immissione ▼","▼ Immissione ▼","▼ Immissione ▼","▼ Immissione ▼","▼ Immissione ▼","▼ Immissione ▼","▼ Immissione ▼","▼ Immissione ▼","▼ Immissione ▼","▼ Immissione ▼","▼ Immissione ▼","▼ Immissione ▼","▼ Immissione ▼","▼ Immissione ▼","▼ Immissione ▼","▼ Immissione ▼","▼ Immissione ▼","▼ Immissione ▼","▼ Immissione ▼","▼ Immissione ▼","▼ Immissione ▼","▼ Immissione ▼","▼ Immissione ▼","▼ Immissione ▼","▼ Immissione ▼","▼ Immissione ▼","▼ Immissione ▼","▼ Immissione ▼","▼ Immissione ▼","▼ Immissione ▼","▼ Immissione ▼","▼ Immissione ▼","▼ Immissione ▼","▼ Immissione ▼","▼ Immissione ▼","▼ Immissione ▼","▼ Immissione ▼","▼ Immissione ▼","▼ Immissione ▼","▼ Immissione ▼","▼ Immissione ▼","▼ Immissione ▼","▼ Immissione ▼","▼ Immissione ▼","▼ Immissione ▼","▼ Immissione ▼","▼ Immissione ▼","▼ Immissione ▼","▼ Immissione ▼","▼ Immissione ▼","▼ Immissione ▼","▼ Immissione ▼","▼ Immissione ▼","▼ Immissione ▼","▼ Immissione ▼","▼ Immissione ▼","▼ Immissione ▼","▼ Immissione ▼","▼ Immissione ▼","▼ Immissione ▼","▼ Immissione ▼","▼ Immissione ▼","▼ Immissione ▼","▼ Immissione ▼","▼ Immissione ▼","▼ Immissione ▼","▼ Immissione ▼","▼ Immissione ▼","▼ Immissione ▼","▼ Immissione ▼","▼ Immissione ▼","▼ Immissione ▼","▼ Immissione ▼","▼ Immissione ▼","▼ Immissione ▼","▼ Immissione ▼","▼ Immissione ▼","▼ Immissione ▼","▼ Immissione ▼","▼ Immissione ▼","▼ Immissione ▼","▼ Immissione ▼","▼ Immissione ▼","▼ Immissione ▼","▼ Immissione ▼","▼ Immissione ▼","▼ Immissione ▼","▼ Immissione ▼","▼ Immissione ▼","▼ Immissione ▼","▼ Immissione ▼","▼ Immissione ▼","▼ Immissione ▼","▼ Immissione ▼","▼ Immissione ▼","▼ Immissione ▼","▼ Immissione ▼","▼ Immissione ▼","▼ Immissione ▼","▼ Immissione ▼","▼ Immissione ▼","▼ Immissione ▼","▼ Immissione ▼","▼ Immissione ▼","▼ Immissione ▼","▼ Immissione ▼","▼ Immissione ▼","▼ Immissione ▼","▼ Immissione ▼","▼ Immissione ▼","▼ Immissione ▼","▼ Immissione ▼","▼ Immissione ▼","▼ Immissione ▼","▼ Immissione ▼","▼ Immissione ▼","▼ Immissione ▼","▼ Immissione ▼","▼ Immissione ▼","▼ Immissione ▼","▼ Immissione ▼","▼ Immissione ▼","▼ Immissione ▼","▼ Immissione ▼","▼ Immissione ▼","▼ Immissione ▼","▼ Immissione ▼","▼ Immissione ▼","▼ Immissione ▼","▼ Immissione ▼","▼ Immissione ▼","▼ Immissione ▼","▼ Immissione ▼","▼ Immissione ▼","▼ Immissione ▼","▼ Immissione ▼","▼ Immissione ▼","▼ Immissione ▼","▼ Immissione ▼","▼ Immissione ▼","▼ Immissione ▼","▼ Immissione ▼","▼ Immissione ▼","▼ Immissione ▼","▼ Immissione ▼","▼ Immissione ▼","▼ Immissione ▼","▼ Immissione ▼","▼ Immissione ▼","▼ Immissione ▼","▼ Immissione ▼","▼ Immissione ▼","▼ Immissione ▼","▼ Immissione ▼","▼ Immissione ▼","▼ Immissione ▼","▼ Immissione ▼","▼ Immissione ▼","▼ Immissione ▼","▼ Immissione ▼","▼ Immissione ▼","▼ Immissione ▼","▼ Immissione ▼","▼ Immissione ▼","▼ Immissione ▼","▼ Immissione ▼","▼ Immissione ▼","▼ Immissione ▼","▼ Immissione ▼","▼ Immissione ▼","▼ Immissione ▼","▼ Immissione ▼","▼ Immissione ▼","▼ Immissione ▼","▼ Immissione ▼","▼ Immissione ▼","▼ Immissione ▼","▼ Immissione ▼","▼ Immissione ▼","▼ Immissione ▼","▼ Immissione ▼","▼ Immissione ▼","▼ Immissione ▼","▼ Immissione ▼","▼ Immissione ▼","▼ Immissione ▼","▼ Immissione ▼","▼ Immissione ▼","▼ Immissione ▼","▼ Immissione ▼","▼ Immissione ▼","▼ Immissione ▼","▼ Immissione ▼","▼ Immissione ▼","▼ Immissione ▼","▼ Immissione ▼","▼ Immissione ▼","▼ Immissione ▼","▼ Immissione ▼","▼ Immissione ▼","▼ Immissione ▼","▼ Immissione ▼","▼ Immissione ▼","▼ Immissione ▼","▼ Immissione ▼","▼ Immissione ▼","▼ Immissione ▼","▼ Immissione ▼","▼ Immissione ▼","▼ Immissione ▼","▼ Immissione ▼","▼ Immissione ▼","▼ Immissione ▼","▼ Immissione ▼","▼ Immissione ▼","▼ Immissione ▼","▼ Immissione ▼","▼ Immissione ▼","▼ Immissione ▼","▼ Immissione ▼","▼ Immissione ▼","▼ Immissione ▼","▼ Immissione ▼","▼ Immissione ▼","▼ Immissione ▼","▼ Immissione ▼","▼ Immissione ▼","▼ Immissione ▼","▼ Immissione ▼","▼ Immissione ▼","▼ Immissione ▼","▼ Immissione ▼","▼ Immissione ▼","▼ Immissione ▼","▼ Immissione ▼","▼ Immissione ▼","▼ Immissione ▼","▼ Immissione ▼","▼ Immissione ▼","▼ Immissione ▼","▼ Immissione ▼","▼ Immissione ▼","▼ Immissione ▼","▼ Immissione ▼","▼ Immissione ▼","▼ Immissione ▼","▼ Immissione ▼","▼ Immissione ▼",3,"▼ Immissione ▼","▼ Immissione ▼","▼ Immissione ▼","▼ Immissione ▼","▼ Immissione ▼","▼ Immissione ▼","▼ Immissione ▼","▼ Immissione ▼","▼ Immissione ▼","▼ Immissione ▼","▼ Immissione ▼","▼ Immissione ▼","▼ Immissione ▼","▼ Immissione ▼","▼ Immissione ▼","▼ Immissione ▼","▼ Immissione ▼","▼ Immissione ▼","▼ Immissione ▼","▼ Immissione ▼","▼ Immissione ▼","▼ Immissione ▼","▼ Immissione ▼","▼ Immissione ▼","▼ Immissione ▼","▼ Immissione ▼","▼ Immissione ▼","▼ Immissione ▼","▼ Immissione ▼","▼ Immissione ▼","▼ Immissione ▼","▼ Immissione ▼","▼ Immissione ▼","▼ Immissione ▼","▼ Immissione ▼","▼ Immissione ▼","▼ Immissione ▼","▼ Immissione ▼","▼ Immissione ▼","▼ Immissione ▼","▼ Immissione ▼","▼ Immissione ▼","▼ Immissione ▼","▼ Immissione ▼","▼ Immissione ▼","▼ Immissione ▼","▼ Immissione ▼","▼ Immissione ▼","▼ Immissione ▼","▼ Immissione ▼","▼ Immissione ▼","▼ Immissione ▼","▼ Immissione ▼","▼ Immissione ▼","▼ Immissione ▼","▼ Immissione ▼","▼ Immissione ▼","▼ Immissione ▼","▼ Immissione ▼","▼ Immissione ▼","▼ Immissione ▼","▼ Immissione ▼","▼ Immissione ▼","▼ Immissione ▼","▼ Immissione ▼","▼ Immissione ▼","▼ Immissione ▼","▼ Immissione ▼","▼ Immissione ▼","▼ Immissione ▼","▼ Immissione ▼","▼ Immissione ▼","▼ Immissione ▼","▼ Immissione ▼","▼ Immissione ▼","▼ Immissione ▼","▼ Immissione ▼","▼ Immissione ▼","▼ Immissione ▼","▼ Immissione ▼","▼ Immissione ▼","▼ Immissione ▼","▼ Immissione ▼","▼ Immissione ▼","▼ Immissione ▼","▼ Immissione ▼","▼ Immissione ▼","▼ Immissione ▼","▼ Immissione ▼","▼ Immissione ▼","▼ Immissione ▼","▼ Immissione ▼","▼ Immissione ▼","▼ Immissione ▼","▼ Immissione ▼","▼ Immissione ▼","▼ Immissione ▼","▼ Immissione ▼","▼ Immissione ▼","▼ Immissione ▼","▼ Immissione ▼","▼ Immissione ▼","▼ Immissione ▼","▼ Immissione ▼","▼ Immissione ▼","▼ Immissione ▼","▼ Immissione ▼","▼ Immissione ▼","▼ Immissione ▼","▼ Immissione ▼","▼ Immissione ▼","▼ Immissione ▼","▼ Immissione ▼","▼ Immissione ▼","▼ Immissione ▼","▼ Immissione ▼","▼ Immissione ▼","▼ Immissione ▼","▼ Immissione ▼","▼ Immissione ▼","▼ Immissione ▼","▼ Immissione ▼","▼ Immissione ▼","▼ Immissione ▼","▼ Immissione ▼","▼ Immissione ▼","▼ Immissione ▼","▼ Immissione ▼","▼ Immissione ▼","▼ Immissione ▼","▼ Immissione ▼","▼ Immissione ▼","▼ Immissione ▼","▼ Immissione ▼","▼ Immissione ▼","▼ Immissione ▼","▼ Immissione ▼","▼ Immissione ▼","▼ Immissione ▼","▼ Immissione ▼","▼ Immissione ▼","▼ Immissione ▼","▼ Immissione ▼","▼ Immissione ▼","▼ Immissione ▼","▼ Immissione ▼","▼ Immissione ▼","▼ Immissione ▼","▼ Immissione ▼","▼ Immissione ▼","▼ Immissione ▼","▼ Immissione ▼","▼ Immissione ▼","▼ Immissione ▼","▼ Immissione ▼","▼ Immissione ▼","▼ Immissione ▼","▼ Immissione ▼","▼ Immissione ▼","▼ Immissione ▼","▼ Immissione ▼","▼ Immissione ▼","▼ Immissione ▼","▼ Immissione ▼","▼ Immissione ▼","▼ Immissione ▼","▼ Immissione ▼","▼ Immissione ▼","▼ Immissione ▼","▼ Immissione ▼","▼ Immissione ▼","▼ Immissione ▼","▼ Immissione ▼","▼ Immissione ▼","▼ Immissione ▼","▼ Immissione ▼","▼ Immissione ▼","▼ Immissione ▼","▼ Immissione ▼","▼ Immissione ▼","▼ Immissione ▼","▼ Immissione ▼","▼ Immissione ▼","▼ Immissione ▼","▼ Immissione ▼","▼ Immissione ▼","▼ Immissione ▼","▼ Immissione ▼","▼ Immissione ▼","▼ Immissione ▼","▼ Immissione ▼","▼ Immissione ▼","▼ Immissione ▼","▼ Immissione ▼","▼ Immissione ▼","▼ Immissione ▼","▼ Immissione ▼","▼ Immissione ▼","▼ Immissione ▼","▼ Immissione ▼","▼ Immissione ▼","▼ Immissione ▼","▼ Immissione ▼","▼ Immissione ▼","▼ Immissione ▼","▼ Immissione ▼","▼ Immissione ▼","▼ Immissione ▼","▼ Immissione ▼","▼ Immissione ▼","▼ Immissione ▼","▼ Immissione ▼","▼ Immissione ▼","▼ Immissione ▼","▼ Immissione ▼","▼ Immissione ▼","▼ Immissione ▼","▼ Immissione ▼","▼ Immissione ▼","▼ Immissione ▼","▼ Immissione ▼","▼ Immissione ▼","▼ Immissione ▼","▼ Immissione ▼","▼ Immissione ▼","▼ Immissione ▼","▼ Immissione ▼","▼ Immissione ▼","▼ Immissione ▼","▼ Immissione ▼","▼ Immissione ▼","▼ Immissione ▼","▼ Immissione ▼","▼ Immissione ▼","▼ Immissione ▼","▼ Immissione ▼","▼ Immissione ▼","▼ Immissione ▼","▼ Immissione ▼","▼ Immissione ▼","▼ Immissione ▼","▼ Immissione ▼","▼ Immissione ▼","▼ Immissione ▼","▼ Immissione ▼","▼ Immissione ▼","▼ Immissione ▼","▼ Immissione ▼","▼ Immissione ▼",3,"▼ Immissione ▼","▼ Immissione ▼","▼ Immissione ▼","▼ Immissione ▼","▼ Immissione ▼","▼ Immissione ▼","▼ Immissione ▼","▼ Immissione ▼","▼ Immissione ▼","▼ Immissione ▼","▼ Immissione ▼","▼ Immissione ▼","▼ Immissione ▼","▼ Immissione ▼","▼ Immissione ▼","▼ Immissione ▼","▼ Immissione ▼","▼ Immissione ▼","▼ Immissione ▼","▼ Immissione ▼","▼ Immissione ▼","▼ Immissione ▼","▼ Immissione ▼","▼ Immissione ▼","▼ Immissione ▼","▼ Immissione ▼","▼ Immissione ▼","▼ Immissione ▼","▼ Immissione ▼","▼ Immissione ▼","▼ Immissione ▼","▼ Immissione ▼","▼ Immissione ▼","▼ Immissione ▼","▼ Immissione ▼","▼ Immissione ▼","▼ Immissione ▼","▼ Immissione ▼","▼ Immissione ▼","▼ Immissione ▼","▼ Immissione ▼","▼ Immissione ▼","▼ Immissione ▼","▼ Immissione ▼","▼ Immissione ▼","▼ Immissione ▼","▼ Immissione ▼","▼ Immissione ▼","▼ Immissione ▼","▼ Immissione ▼","▼ Immissione ▼","▼ Immissione ▼","▼ Immissione ▼","▼ Immissione ▼","▼ Immissione ▼","▼ Immissione ▼","▼ Immissione ▼","▼ Immissione ▼","▼ Immissione ▼","▼ Immissione ▼","▼ Immissione ▼","▼ Immissione ▼","▼ Immissione ▼","▼ Immissione ▼","▼ Immissione ▼","▼ Immissione ▼","▼ Immissione ▼","▼ Immissione ▼","▼ Immissione ▼","▼ Immissione ▼","▼ Immissione ▼","▼ Immissione ▼","▼ Immissione ▼","▼ Immissione ▼","▼ Immissione ▼","▼ Immissione ▼","▼ Immissione ▼","▼ Immissione ▼","▼ Immissione ▼","▼ Immissione ▼","▼ Immissione ▼","▼ Immissione ▼","▼ Immissione ▼","▼ Immissione ▼","▼ Immissione ▼","▼ Immissione ▼","▼ Immissione ▼","▼ Immissione ▼","▼ Immissione ▼","▼ Immissione ▼","▼ Immissione ▼","▼ Immissione ▼","▼ Immissione ▼","▼ Immissione ▼","▼ Immissione ▼","▼ Immissione ▼","▼ Immissione ▼","▼ Immissione ▼","▼ Immissione ▼","▼ Immissione ▼","▼ Immissione ▼","▼ Immissione ▼","▼ Immissione ▼","▼ Immissione ▼","▼ Immissione ▼","▼ Immissione ▼","▼ Immissione ▼","▼ Immissione ▼","▼ Immissione ▼","▼ Immissione ▼","▼ Immissione ▼","▼ Immissione ▼","▼ Immissione ▼","▼ Immissione ▼","▼ Immissione ▼","▼ Immissione ▼","▼ Immissione ▼","▼ Immissione ▼","▼ Immissione ▼","▼ Immissione ▼","▼ Immissione ▼","▼ Immissione ▼","▼ Immissione ▼","▼ Immissione ▼","▼ Immissione ▼","▼ Immissione ▼","▼ Immissione ▼","▼ Immissione ▼","▼ Immissione ▼","▼ Immissione ▼","▼ Immissione ▼","▼ Immissione ▼","▼ Immissione ▼","▼ Immissione ▼","▼ Immissione ▼","▼ Immissione ▼","▼ Immissione ▼","▼ Immissione ▼","▼ Immissione ▼","▼ Immissione ▼","▼ Immissione ▼","▼ Immissione ▼","▼ Immissione ▼","▼ Immissione ▼","▼ Immissione ▼","▼ Immissione ▼","▼ Immissione ▼","▼ Immissione ▼","▼ Immissione ▼","▼ Immissione ▼","▼ Immissione ▼","▼ Immissione ▼","▼ Immissione ▼","▼ Immissione ▼","▼ Immissione ▼","▼ Immissione ▼","▼ Immissione ▼","▼ Immissione ▼","▼ Immissione ▼","▼ Immissione ▼","▼ Immissione ▼","▼ Immissione ▼","▼ Immissione ▼","▼ Immissione ▼","▼ Immissione ▼","▼ Immissione ▼","▼ Immissione ▼","▼ Immissione ▼","▼ Immissione ▼","▼ Immissione ▼","▼ Immissione ▼","▼ Immissione ▼","▼ Immissione ▼","▼ Immissione ▼","▼ Immissione ▼","▼ Immissione ▼","▼ Immissione ▼","▼ Immissione ▼","▼ Immissione ▼","▼ Immissione ▼","▼ Immissione ▼","▼ Immissione ▼","▼ Immissione ▼","▼ Immissione ▼","▼ Immissione ▼","▼ Immissione ▼","▼ Immissione ▼","▼ Immissione ▼","▼ Immissione ▼","▼ Immissione ▼","▼ Immissione ▼","▼ Immissione ▼","▼ Immissione ▼","▼ Immissione ▼","▼ Immissione ▼","▼ Immissione ▼","▼ Immissione ▼","▼ Immissione ▼","▼ Immissione ▼","▼ Immissione ▼","▼ Immissione ▼","▼ Immissione ▼","▼ Immissione ▼","▼ Immissione ▼","▼ Immissione ▼","▼ Immissione ▼","▼ Immissione ▼","▼ Immissione ▼","▼ Immissione ▼","▼ Immissione ▼","▼ Immissione ▼","▼ Immissione ▼","▼ Immissione ▼","▼ Immissione ▼","▼ Immissione ▼","▼ Immissione ▼","▼ Immissione ▼","▼ Immissione ▼","▼ Immissione ▼","▼ Immissione ▼","▼ Immissione ▼","▼ Immissione ▼","▼ Immissione ▼","▼ Immissione ▼","▼ Immissione ▼","▼ Immissione ▼","▼ Immissione ▼","▼ Immissione ▼","▼ Immissione ▼","▼ Immissione ▼","▼ Immissione ▼","▼ Immissione ▼","▼ Immissione ▼","▼ Immissione ▼","▼ Immissione ▼","▼ Immissione ▼","▼ Immissione ▼","▼ Immissione ▼","▼ Immissione ▼","▼ Immissione ▼","▼ Immissione ▼","▼ Immissione ▼","▼ Immissione ▼","▼ Immissione ▼","▼ Immissione ▼","▼ Immissione ▼","▼ Immissione ▼","▼ Immissione ▼"]
[null,"2.1.V01",null,"Genere di record",null,"ZU","ZU","ZU","ZU","ZU","ZU","ZU","ZU","ZU","ZU","ZU","ZU","ZU","ZU","ZU","ZU","ZU","ZU","ZU","ZU","ZU","ZU","ZU","ZU","ZU","ZU","ZU","ZU","ZU","ZU","ZU","ZU","ZU","ZU","ZU","ZU","ZU","ZU","ZU","ZU","ZU","ZU","ZU","ZU","ZU","ZU","ZU","ZU","ZU","ZU","ZU","ZU","ZU","ZU","ZU","ZU","ZU","ZU","ZU","ZU","ZU","ZU","ZU","ZU","ZU","ZU","ZU","ZU","ZU","ZU","ZU","ZU","ZU","ZU","ZU","ZU","ZU","ZU","ZU","ZU","ZU","ZU","ZU","ZU","ZU","ZU","ZU","ZU","ZU","ZU","ZU","ZU","ZU","ZU","ZU","ZU","ZU","ZU","ZU","ZU","ZU","ZU","ZU","ZU","ZU","ZU","ZU","ZU","ZU","ZU","ZU","ZU","ZU","ZU","ZU","ZU","ZU","ZU","ZU","ZU","ZU","ZU","ZU","ZU","ZU","ZU","ZU","ZU","ZU","ZU","ZU","ZU","ZU","ZU","ZU","ZU","ZU","ZU","ZU","ZU","ZU","ZU","ZU","ZU","ZU","ZU","ZU","ZU","ZU","ZU","ZU","ZU","ZU","ZU","ZU","ZU","ZU","ZU","ZU","ZU","ZU","ZU","ZU","ZU","ZU","ZU","ZU","ZU","ZU","ZU","ZU","ZU","ZU","ZU","ZU","ZU","ZU","ZU","ZU","ZU","ZU","ZU","ZU","ZU","ZU","ZU","ZU","ZU","ZU","ZU","ZU","ZU","ZU","ZU","ZU","ZU","ZU","ZU","ZU","ZU","ZU","ZU","ZU","ZU","ZU","ZU","ZU","ZU","ZU","ZU","ZU","ZU","ZU","ZU","ZU","ZU","ZU","ZU","ZU","ZU","ZU","ZU","ZU","ZU","ZU","ZU","ZU","ZU","ZU","ZU","ZU","ZU","ZU","ZU","ZU","ZU","ZU","ZU","ZU","ZU","ZU","ZU","ZU","ZU","ZU","ZU","ZU","ZU","ZU","ZU","ZU","ZU","ZU","ZU","ZU","ZU","ZU","ZU","ZU","ZU","ZU","ZU","ZU","ZU","ZU","ZU","ZU","ZU","ZU","ZU","ZU","ZU","ZU","ZU","ZU","ZU","ZU","ZU","ZU","ZU","ZU","ZU","ZU","ZU","ZU","ZU","ZU","ZU","ZU","ZU","ZU","ZU","ZU","ZU","ZU","ZU","ZU","ZU","ZU","ZU","ZU","ZU","ZU","ZU","ZU","ZU","ZU","ZU","ZU","ZU","ZU","ZU","ZU","ZU","ZU","ZU","ZU","ZU","ZU","ZU","ZU","ZU","ZU","ZU","ZU","ZU","ZU","ZU","ZU","ZU","ZU","ZU","ZU","ZU","ZU","ZU","ZU","ZU","ZU","ZU","ZU","ZU","ZU","ZU","ZU","ZU","ZU","ZU","ZU","ZU","ZU","ZU","ZU","ZU","ZU","ZU","ZU","ZU","ZU","ZU","ZU","ZU","ZU","ZU","ZU","ZU","ZU","ZU","ZU","ZU","ZU","ZU","ZU","ZU","ZU","ZU","ZU","ZU","ZU","ZU","ZU","ZU","ZU","ZU","ZU","ZU","ZU","ZU","ZU","ZU","ZU","ZU","ZU","ZU","ZU","ZU","ZU","ZU","ZU","ZU","ZU","ZU","ZU","ZU","ZU","ZU","ZU","ZU","ZU","ZU","ZU","ZU","ZU","ZU","ZU","ZU","ZU","ZU","ZU","ZU","ZU","ZU","ZU","ZU","ZU","ZU","ZU","ZU","ZU","ZU","ZU","ZU","ZU","ZU","ZU","ZU","ZU","ZU","ZU","ZU","ZU","ZU","ZU","ZU","ZU","ZU","ZU","ZU","ZU","ZU","ZU","ZU","ZU","ZU","ZU","ZU","ZU","ZU","ZU","ZU","ZU","ZU","ZU","ZU","ZU","ZU","ZU","ZU","ZU","ZU","ZU","ZU","ZU","ZU","ZU","ZU","ZU","ZU","ZU","ZU","ZU","ZU","ZU","ZU","ZU","ZU","ZU","ZU","ZU","ZU","ZU","ZU","ZU","ZU","ZU","ZU","ZU","ZU","ZU","ZU","ZU","ZU","ZU","ZU","ZU","ZU","ZU","ZU","ZU","ZU","ZU","ZU","ZU","ZU","ZU","ZU","ZU","ZU","ZU","ZU","ZU","ZU","ZU","ZU","ZU","ZU","ZU","ZU","ZU","ZU","ZU","ZU","ZU","ZU","ZU","ZU","ZU","ZU","ZU","ZU","ZU","ZU","ZU","ZU","ZU","ZU","ZU","ZU","ZU","ZU","ZU","ZU","ZU","ZU","ZU","ZU","ZU","ZU","ZU","ZU","ZU","ZU","ZU","ZU","ZU","ZU","ZU","ZU","ZU","ZU","ZU","ZU","ZU","ZU","ZU","ZU","ZU","ZU","ZU","ZU","ZU","ZU","ZU","ZU","ZU","ZU","ZU","ZU","ZU","ZU","ZU","ZU","ZU","ZU","ZU","ZU","ZU","ZU","ZU","ZU","ZU","ZU","ZU","ZU","ZU","ZU","ZU","ZU","ZU","ZU","ZU","ZU","ZU","ZU","ZU","ZU","ZU","ZU","ZU","ZU","ZU","ZU","ZU","ZU","ZU","ZU","ZU","ZU","ZU","ZU","ZU","ZU","ZU","ZU","ZU","ZU","ZU","ZU","ZU","ZU","ZU","ZU","ZU","ZU","ZU","ZU","ZU","ZU","ZU","ZU","ZU","ZU","ZU","ZU","ZU","ZU","ZU","ZU","ZU","ZU","ZU","ZU","ZU","ZU","ZU","ZU","ZU","ZU","ZU","ZU","ZU","ZU","ZU","ZU","ZU","ZU","ZU","ZU","ZU","ZU","ZU","ZU","ZU","ZU","ZU","ZU","ZU","ZU","ZU","ZU","ZU","ZU","ZU","ZU","ZU","ZU","ZU","ZU","ZU","ZU","ZU","ZU","ZU","ZU","ZU","ZU","ZU","ZU","ZU","ZU","ZU","ZU","ZU","ZU","ZU","ZU","ZU","ZU","ZU","ZU","ZU","ZU","ZU","ZU","ZU","ZU","ZU","ZU","ZU","ZU","ZU","ZU","ZU","ZU","ZU","ZU","ZU","ZU","ZU","ZU","ZU","ZU","ZU","ZU","ZU","ZU","ZU","ZU","ZU","ZU","ZU","ZU","ZU","ZU","ZU","ZU","ZU","ZU","ZU","ZU","ZU","ZU","ZU","ZU","ZU","ZU","ZU","ZU","ZU","ZU","ZU","ZU","ZU","ZU","ZU","ZU","ZU","ZU","ZU","ZU","ZU","ZU","ZU","ZU","ZU","ZU","ZU","ZU","ZU","ZU","ZU","ZU","ZU","ZU","ZU","ZU","ZU","ZU","ZU","ZU","ZU","ZU","ZU","ZU","ZU","ZU","ZU","ZU","ZU","ZU","ZU","ZU","ZU","ZU","ZU","ZU","ZU","ZU","ZU","ZU","ZU","ZU","ZU","ZU","ZU","ZU","ZU","ZU","ZU","ZU","ZU","ZU","ZU","ZU","ZU","ZU","ZU","ZU","ZU","ZU","ZU","ZU","ZU","ZU","ZU","ZU","ZU","ZU","ZU","ZU","ZU","ZU","ZU","ZU","ZU","ZU","ZU","ZU","ZU","ZU","ZU","ZU","ZU","ZU","ZU","ZU","ZU","ZU","ZU","ZU","ZU","ZU","ZU","ZU","ZU","ZU","ZU","ZU","ZU","ZU","ZU","ZU","ZU","ZU","ZU","ZU","ZU","ZU","ZU","ZU","ZU","ZU","ZU","ZU","ZU","ZU","ZU","ZU","ZU","ZU","ZU","ZU","ZU","ZU","ZU","ZU","ZU","ZU","ZU","ZU","ZU","ZU","ZU","ZU","ZU","ZU","ZU","ZU","ZU","ZU","ZU","ZU","ZU","ZU","ZU","ZU","ZU","ZU","ZU","ZU","ZU","ZU","ZU","ZU","ZU","ZU","ZU","ZU","ZU","ZU","ZU","ZU","ZU","ZU","ZU","ZU","ZU","ZU","ZU","ZU","ZU","ZU","ZU","ZU","ZU","ZU","ZU","ZU","ZU","ZU","ZU","ZU","ZU","ZU","ZU","ZU","ZU","ZU","ZU","ZU","ZU","ZU","ZU","ZU","ZU","ZU","ZU","ZU","ZU","ZU","ZU","ZU","ZU","ZU","ZU","ZU","ZU","ZU","ZU","ZU","ZU","ZU","ZU","ZU","ZU","ZU","ZU","ZU","ZU","ZU","."]
[null,"FID",null,"Numero di identificazione del caso (FID)",null,null,null,null,null,null,null,null,null,null,null,null,null,null,null,null,null,null,null,null,null,null,null,null,null,null,null,null,null,null,null,null,null,null,null,null,null,null,null,null,null,null,null,null,null,null,null,null,null,null,null,null,null,null,null,null,null,null,null,null,null,null,null,null,null,null,null,null,null,null,null,null,null,null,null,null,null,null,null,null,null,null,null,null,null,null,null,null,null,null,null,null,null,null,null,null,null,null,null,null,null,null,null,null,null,null,null,null,null,null,null,null,null,null,null,null,null,null,null,null,null,null,null,null,null,null,null,null,null,null,null,null,null,null,null,null,null,null,null,null,null,null,null,null,null,null,null,null,null,null,null,null,null,null,null,null,null,null,null,null,null,null,null,null,null,null,null,null,null,null,null,null,null,null,null,null,null,null,null,null,null,null,null,null,null,null,null,null,null,null,null,null,null,null,null,null,null,null,null,null,null,null,null,null,null,null,null,null,null,null,null,null,null,null,null,null,null,null,null,null,null,null,null,null,null,null,null,null,null,null,null,null,null,null,null,null,null,null,null,null,null,null,null,null,null,null,null,null,null,null,null,null,null,null,null,null,null,null,null,null,null,null,null,null,null,null,null,null,null,null,null,null,null,null,null,null,null,null,null,null,null,null,null,null,null,null,null,null,null,null,null,null,null,null,null,null,null,null,null,null,null,null,null,null,null,null,null,null,null,null,null,null,null,null,null,null,null,null,null,null,null,null,null,null,null,null,null,null,null,null,null,null,null,null,null,null,null,null,null,null,null,null,null,null,null,null,null,null,null,null,null,null,null,null,null,null,null,null,null,null,null,null,null,null,null,null,null,null,null,null,null,null,null,null,null,null,null,null,null,null,null,null,null,null,null,null,null,null,null,null,null,null,null,null,null,null,null,null,null,null,null,null,null,null,null,null,null,null,null,null,null,null,null,null,null,null,null,null,null,null,null,null,null,null,null,null,null,null,null,null,null,null,null,null,null,null,null,null,null,null,null,null,null,null,null,null,null,null,null,null,null,null,null,null,null,null,null,null,null,null,null,null,null,null,null,null,null,null,null,null,null,null,null,null,null,null,null,null,null,null,null,null,null,null,null,null,null,null,null,null,null,null,null,null,null,null,null,null,null,null,null,null,null,null,null,null,null,null,null,null,null,null,null,null,null,null,null,null,null,null,null,null,null,null,null,null,null,null,null,null,null,null,null,null,null,null,null,null,null,null,null,null,null,null,null,null,null,null,null,null,null,null,null,null,null,null,null,null,null,null,null,null,null,null,null,null,null,null,null,null,null,null,null,null,null,null,null,null,null,null,null,null,null,null,null,null,null,null,null,null,null,null,null,null,null,null,null,null,null,null,null,null,null,null,null,null,null,null,null,null,null,null,null,null,null,null,null,null,null,null,null,null,null,null,null,null,null,null,null,null,null,null,null,null,null,null,null,null,null,null,null,null,null,null,null,null,null,null,null,null,null,null,null,null,null,null,null,null,null,null,null,null,null,null,null,null,null,null,null,null,null,null,null,null,null,null,null,null,null,null,null,null,null,null,null,null,null,null,null,null,null,null,null,null,null,null,null,null,null,null,null,null,null,null,null,null,null,null,null,null,null,null,null,null,null,null,null,null,null,null,null,null,null,null,null,null,null,null,null,null,null,null,null,null,null,null,null,null,null,null,null,null,null,null,null,null,null,null,null,null,null,null,null,null,null,null,null,null,null,null,null,null,null,null,null,null,null,null,null,null,null,null,null,null,null,null,null,null,null,null,null,null,null,null,null,null,null,null,null,null,null,null,null,null,null,null,null,null,null,null,null,null,null,null,null,null,null,null,null,null,null,null,null,null,null,null,null,null,null,null,null,null,null,null,null,null,null,null,null,null,null,null,null,null,null,null,null,null,null,null,null,null,null,null,null,null,null,null,null,null,null,null,null,null,null,null,null,null,null,null,null,null,null,null,null,null,null,null,null,null,null,null,null,null,null,null,null,null,null,null,null,null,null,null,null,null,null,null,null,null,null,null,null,null,null,null,null,null,null,null,null,null,null,null,null,null,null,null,null,null,null,null,null,null,null,null,null,null,null,null,null,null,null,null,null,null,null,null,null,null,null,null,null,null,null,null,null,null,null,null,null,null,null,null,null,null,null,null,null,null,null,null,null,null,null,null,null,null,null,null,null,null,null,null,null,null,null,null,null,null,null,null,null,null,null,null,null,null,null,null,null,null,null,null,null,null,null,null,null,null,null,null,null,null,null,null,null,null,null,null,null,"."]
[null,"2.1.V02",null,"Numero dello stabilimento (satellite RIS sanità)",null,null,null,null,null,null,null,null,null,null,null,null,null,null,null,null,null,null,null,null,null,null,null,null,null,null,null,null,null,null,null,null,null,null,null,null,null,null,null,null,null,null,null,null,null,null,null,null,null,null,null,null,null,null,null,null,null,null,null,null,null,null,null,null,null,null,null,null,null,null,null,null,null,null,null,null,null,null,null,null,null,null,null,null,null,null,null,null,null,null,null,null,null,null,null,null,null,null,null,null,null,null,null,null,null,null,null,null,null,null,null,null,null,null,null,null,null,null,null,null,null,null,null,null,null,null,null,null,null,null,null,null,null,null,null,null,null,null,null,null,null,null,null,null,null,null,null,null,null,null,null,null,null,null,null,null,null,null,null,null,null,null,null,null,null,null,null,null,null,null,null,null,null,null,null,null,null,null,null,null,null,null,null,null,null,null,null,null,null,null,null,null,null,null,null,null,null,null,null,null,null,null,null,null,null,null,null,null,null,null,null,null,null,null,null,null,null,null,null,null,null,null,null,null,null,null,null,null,null,null,null,null,null,null,null,null,null,null,null,null,null,null,null,null,null,null,null,null,null,null,null,null,null,null,null,null,null,null,null,null,null,null,null,null,null,null,null,null,null,null,null,null,null,null,null,null,null,null,null,null,null,null,null,null,null,null,null,null,null,null,null,null,null,null,null,null,null,null,null,null,null,null,null,null,null,null,null,null,null,null,null,null,null,null,null,null,null,null,null,null,null,null,null,null,null,null,null,null,null,null,null,null,null,null,null,null,null,null,null,null,null,null,null,null,null,null,null,null,null,null,null,null,null,null,null,null,null,null,null,null,null,null,null,null,null,null,null,null,null,null,null,null,null,null,null,null,null,null,null,null,null,null,null,null,null,null,null,null,null,null,null,null,null,null,null,null,null,null,null,null,null,null,null,null,null,null,null,null,null,null,null,null,null,null,null,null,null,null,null,null,null,null,null,null,null,null,null,null,null,null,null,null,null,null,null,null,null,null,null,null,null,null,null,null,null,null,null,null,null,null,null,null,null,null,null,null,null,null,null,null,null,null,null,null,null,null,null,null,null,null,null,null,null,null,null,null,null,null,null,null,null,null,null,null,null,null,null,null,null,null,null,null,null,null,null,null,null,null,null,null,null,null,null,null,null,null,null,null,null,null,null,null,null,null,null,null,null,null,null,null,null,null,null,null,null,null,null,null,null,null,null,null,null,null,null,null,null,null,null,null,null,null,null,null,null,null,null,null,null,null,null,null,null,null,null,null,null,null,null,null,null,null,null,null,null,null,null,null,null,null,null,null,null,null,null,null,null,null,null,null,null,null,null,null,null,null,null,null,null,null,null,null,null,null,null,null,null,null,null,null,null,null,null,null,null,null,null,null,null,null,null,null,null,null,null,null,null,null,null,null,null,null,null,null,null,null,null,null,null,null,null,null,null,null,null,null,null,null,null,null,null,null,null,null,null,null,null,null,null,null,null,null,null,null,null,null,null,null,null,null,null,null,null,null,null,null,null,null,null,null,null,null,null,null,null,null,null,null,null,null,null,null,null,null,null,null,null,null,null,null,null,null,null,null,null,null,null,null,null,null,null,null,null,null,null,null,null,null,null,null,null,null,null,null,null,null,null,null,null,null,null,null,null,null,null,null,null,null,null,null,null,null,null,null,null,null,null,null,null,null,null,null,null,null,null,null,null,null,null,null,null,null,null,null,null,null,null,null,null,null,null,null,null,null,null,null,null,null,null,null,null,null,null,null,null,null,null,null,null,null,null,null,null,null,null,null,null,null,null,null,null,null,null,null,null,null,null,null,null,null,null,null,null,null,null,null,null,null,null,null,null,null,null,null,null,null,null,null,null,null,null,null,null,null,null,null,null,null,null,null,null,null,null,null,null,null,null,null,null,null,null,null,null,null,null,null,null,null,null,null,null,null,null,null,null,null,null,null,null,null,null,null,null,null,null,null,null,null,null,null,null,null,null,null,null,null,null,null,null,null,null,null,null,null,null,null,null,null,null,null,null,null,null,null,null,null,null,null,null,null,null,null,null,null,null,null,null,null,null,null,null,null,null,null,null,null,null,null,null,null,null,null,null,null,null,null,null,null,null,null,null,null,null,null,null,null,null,null,null,null,null,null,null,null,null,null,null,null,null,null,null,null,null,null,null,null,null,null,null,null,null,null,null,null,null,null,null,null,null,null,null,null,null,null,null,null,null,null,null,null,null,null,null,null,null,null,null,null,null,null,null,null,null,null,null,null,null,null,null,null,null,"."]
[null,"2.2.",null,"Cumulative Illness Rating Scale (CIRS)",null,null,null,null,null,null,null,null,null,null,null,null,null,null,null,null,null,null,null,null,null,null,null,null,null,null,null,null,null,null,null,null,null,null,null,null,null,null,null,null,null,null,null,null,null,null,null,null,null,null,null,null,null,null,null,null,null,null,null,null,null,null,null,null,null,null,null,null,null,null,null,null,null,null,null,null,null,null,null,null,null,null,null,null,null,null,null,null,null,null,null,null,null,null,null,null,null,null,null,null,null,null,null,null,null,null,null,null,null,null,null,null,null,null,null,null,null,null,null,null,null,null,null,null,null,null,null,null,null,null,null,null,null,null,null,null,null,null,null,null,null,null,null,null,null,null,null,null,null,null,null,null,null,null,null,null,null,null,null,null,null,null,null,null,null,null,null,null,null,null,null,null,null,null,null,null,null,null,null,null,null,null,null,null,null,null,null,null,null,null,null,null,null,null,null,null,null,null,null,null,null,null,null,null,null,null,null,null,null,null,null,null,null,null,null,null,null,null,null,null,null,null,null,null,null,null,null,null,null,null,null,null,null,null,null,null,null,null,null,null,null,null,null,null,null,null,null,null,null,null,null,null,null,null,null,null,null,null,null,null,null,null,null,null,null,null,null,null,null,null,null,null,null,null,null,null,null,null,null,null,null,null,null,null,null,null,null,null,null,null,null,null,null,null,null,null,null,null,null,null,null,null,null,null,null,null,null,null,null,null,null,null,null,null,null,null,null,null,null,null,null,null,null,null,null,null,null,null,null,null,null,null,null,null,null,null,null,null,null,null,null,null,null,null,null,null,null,null,null,null,null,null,null,null,null,null,null,null,null,null,null,null,null,null,null,null,null,null,null,null,null,null,null,null,null,null,null,null,null,null,null,null,null,null,null,null,null,null,null,null,null,null,null,null,null,null,null,null,null,null,null,null,null,null,null,null,null,null,null,null,null,null,null,null,null,null,null,null,null,null,null,null,null,null,null,null,null,null,null,null,null,null,null,null,null,null,null,null,null,null,null,null,null,null,null,null,null,null,null,null,null,null,null,null,null,null,null,null,null,null,null,null,null,null,null,null,null,null,null,null,null,null,null,null,null,null,null,null,null,null,null,null,null,null,null,null,null,null,null,null,null,null,null,null,null,null,null,null,null,null,null,null,null,null,null,null,null,null,null,null,null,null,null,null,null,null,null,null,null,null,null,null,null,null,null,null,null,null,null,null,null,null,null,null,null,null,null,null,null,null,null,null,null,null,null,null,null,null,null,null,null,null,null,null,null,null,null,null,null,null,null,null,null,null,null,null,null,null,null,null,null,null,null,null,null,null,null,null,null,null,null,null,null,null,null,null,null,null,null,null,null,null,null,null,null,null,null,null,null,null,null,null,null,null,null,null,null,null,null,null,null,null,null,null,null,null,null,null,null,null,null,null,null,null,null,null,null,null,null,null,null,null,null,null,null,null,null,null,null,null,null,null,null,null,null,null,null,null,null,null,null,null,null,null,null,null,null,null,null,null,null,null,null,null,null,null,null,null,null,null,null,null,null,null,null,null,null,null,null,null,null,null,null,null,null,null,null,null,null,null,null,null,null,null,null,null,null,null,null,null,null,null,null,null,null,null,null,null,null,null,null,null,null,null,null,null,null,null,null,null,null,null,null,null,null,null,null,null,null,null,null,null,null,null,null,null,null,null,null,null,null,null,null,null,null,null,null,null,null,null,null,null,null,null,null,null,null,null,null,null,null,null,null,null,null,null,null,null,null,null,null,null,null,null,null,null,null,null,null,null,null,null,null,null,null,null,null,null,null,null,null,null,null,null,null,null,null,null,null,null,null,null,null,null,null,null,null,null,null,null,null,null,null,null,null,null,null,null,null,null,null,null,null,null,null,null,null,null,null,null,null,null,null,null,null,null,null,null,null,null,null,null,null,null,null,null,null,null,null,null,null,null,null,null,null,null,null,null,null,null,null,null,null,null,null,null,null,null,null,null,null,null,null,null,null,null,null,null,null,null,null,null,null,null,null,null,null,null,null,null,null,null,null,null,null,null,null,null,null,null,null,null,null,null,null,null,null,null,null,null,null,null,null,null,null,null,null,null,null,null,null,null,null,null,null,null,null,null,null,null,null,null,null,null,null,null,null,null,null,null,null,null,null,null,null,null,null,null,null,null,null,null,null,null,null,null,null,null,null,null,null,null,null,null,null,null,null,null,null,null,null,null,null,null,null,null,null,null,null,null,null,null,null,null,null,null,null,null,null,null,null,null,null,null,null,null,null,null,null,null,null,"."]
[null,"2.2.V00",null,"CIRS_Data del rilevamento",null,null,null,null,null,null,null,null,null,null,null,null,null,null,null,null,null,null,null,null,null,null,null,null,null,null,null,null,null,null,null,null,null,null,null,null,null,null,null,null,null,null,null,null,null,null,null,null,null,null,null,null,null,null,null,null,null,null,null,null,null,null,null,null,null,null,null,null,null,null,null,null,null,null,null,null,null,null,null,null,null,null,null,null,null,null,null,null,null,null,null,null,null,null,null,null,null,null,null,null,null,null,null,null,null,null,null,null,null,null,null,null,null,null,null,null,null,null,null,null,null,null,null,null,null,null,null,null,null,null,null,null,null,null,null,null,null,null,null,null,null,null,null,null,null,null,null,null,null,null,null,null,null,null,null,null,null,null,null,null,null,null,null,null,null,null,null,null,null,null,null,null,null,null,null,null,null,null,null,null,null,null,null,null,null,null,null,null,null,null,null,null,null,null,null,null,null,null,null,null,null,null,null,null,null,null,null,null,null,null,null,null,null,null,null,null,null,null,null,null,null,null,null,null,null,null,null,null,null,null,null,null,null,null,null,null,null,null,null,null,null,null,null,null,null,null,null,null,null,null,null,null,null,null,null,null,null,null,null,null,null,null,null,null,null,null,null,null,null,null,null,null,null,null,null,null,null,null,null,null,null,null,null,null,null,null,null,null,null,null,null,null,null,null,null,null,null,null,null,null,null,null,null,null,null,null,null,null,null,null,null,null,null,null,null,null,null,null,null,null,null,null,null,null,null,null,null,null,null,null,null,null,null,null,null,null,null,null,null,null,null,null,null,null,null,null,null,null,null,null,null,null,null,null,null,null,null,null,null,null,null,null,null,null,null,null,null,null,null,null,null,null,null,null,null,null,null,null,null,null,null,null,null,null,null,null,null,null,null,null,null,null,null,null,null,null,null,null,null,null,null,null,null,null,null,null,null,null,null,null,null,null,null,null,null,null,null,null,null,null,null,null,null,null,null,null,null,null,null,null,null,null,null,null,null,null,null,null,null,null,null,null,null,null,null,null,null,null,null,null,null,null,null,null,null,null,null,null,null,null,null,null,null,null,null,null,null,null,null,null,null,null,null,null,null,null,null,null,null,null,null,null,null,null,null,null,null,null,null,null,null,null,null,null,null,null,null,null,null,null,null,null,null,null,null,null,null,null,null,null,null,null,null,null,null,null,null,null,null,null,null,null,null,null,null,null,null,null,null,null,null,null,null,null,null,null,null,null,null,null,null,null,null,null,null,null,null,null,null,null,null,null,null,null,null,null,null,null,null,null,null,null,null,null,null,null,null,null,null,null,null,null,null,null,null,null,null,null,null,null,null,null,null,null,null,null,null,null,null,null,null,null,null,null,null,null,null,null,null,null,null,null,null,null,null,null,null,null,null,null,null,null,null,null,null,null,null,null,null,null,null,null,null,null,null,null,null,null,null,null,null,null,null,null,null,null,null,null,null,null,null,null,null,null,null,null,null,null,null,null,null,null,null,null,null,null,null,null,null,null,null,null,null,null,null,null,null,null,null,null,null,null,null,null,null,null,null,null,null,null,null,null,null,null,null,null,null,null,null,null,null,null,null,null,null,null,null,null,null,null,null,null,null,null,null,null,null,null,null,null,null,null,null,null,null,null,null,null,null,null,null,null,null,null,null,null,null,null,null,null,null,null,null,null,null,null,null,null,null,null,null,null,null,null,null,null,null,null,null,null,null,null,null,null,null,null,null,null,null,null,null,null,null,null,null,null,null,null,null,null,null,null,null,null,null,null,null,null,null,null,null,null,null,null,null,null,null,null,null,null,null,null,null,null,null,null,null,null,null,null,null,null,null,null,null,null,null,null,null,null,null,null,null,null,null,null,null,null,null,null,null,null,null,null,null,null,null,null,null,null,null,null,null,null,null,null,null,null,null,null,null,null,null,null,null,null,null,null,null,null,null,null,null,null,null,null,null,null,null,null,null,null,null,null,null,null,null,null,null,null,null,null,null,null,null,null,null,null,null,null,null,null,null,null,null,null,null,null,null,null,null,null,null,null,null,null,null,null,null,null,null,null,null,null,null,null,null,null,null,null,null,null,null,null,null,null,null,null,null,null,null,null,null,null,null,null,null,null,null,null,null,null,null,null,null,null,null,null,null,null,null,null,null,null,null,null,null,null,null,null,null,null,null,null,null,null,null,null,null,null,null,null,null,null,null,null,null,null,null,null,null,null,null,null,null,null,null,null,null,null,null,null,null,null,null,null,null,null,null,null,null,null,null,null,null,null,null,null,null,null,null,"."]
[null,"2.2.V00",null,"CIRS_Data del rilevamento (conversione per l'esportazione dei dati)",null,{"$f":"IF(F14<>\"\",(YEAR(F14)*10000)+(MONTH(F14)*100)+DAY(F14),\"\")","v":""},{"$f":"IF(G14<>\"\",(YEAR(G14)*10000)+(MONTH(G14)*100)+DAY(G14),\"\")","v":""},"","","","","","","","","","","","","","","","","","","","","","","","","","","","","","","","","","","","","","","","","","","","","","","","","","","","","","","","","","","","","","",{"$f":"IF(BR14<>\"\",(YEAR(BR14)*10000)+(MONTH(BR14)*100)+DAY(BR14),\"\")","v":""},"","","","","","","","","","","","","","","","","","","","","","","","","","","","","","","","","","","","","","","","","","","","","","","","","","","","","","","","","","","","","","","",{"$f":"IF(ED14<>\"\",(YEAR(ED14)*10000)+(MONTH(ED14)*100)+DAY(ED14),\"\")","v":""},"","","","","","","","","","","","","","","","","","","","","","","","","","","","","","","","","","","","","","","","","","","","","","","","","","","","","","","","","","","","","","","",{"$f":"IF(GP14<>\"\",(YEAR(GP14)*10000)+(MONTH(GP14)*100)+DAY(GP14),\"\")","v":""},"","","","","","","","","","","","","","","","","","","","","","","","","","","","","","","","","","","","","","","","","","","","","","","","","","","","","","","","","",{"$f":"IF(IV14<>\"\",(YEAR(IV14)*10000)+(MONTH(IV14)*100)+DAY(IV14),\"\")","v":""},{"$f":"IF(IW14<>\"\",(YEAR(IW14)*10000)+(MONTH(IW14)*100)+DAY(IW14),\"\")","v":""},"","","","","","","","","","","","","","","","","","","","","","","","","","","","","","","","","","","","","","","","","","","","","","","","","","","","","","","","","","","","","","","",{"$f":"IF(LI14<>\"\",(YEAR(LI14)*10000)+(MONTH(LI14)*100)+DAY(LI14),\"\")","v":""},"","","","","","","","","","","","","","","","","","","","","","","","","","","","","","","","","","","","","","","","","","","","","","","","","","","","","","","","","","","","","","","",{"$f":"IF(NU14<>\"\",(YEAR(NU14)*10000)+(MONTH(NU14)*100)+DAY(NU14),\"\")","v":""},"","","","","","","","","","","","","","","","","","","","","","","","","","","","","","","","","","","","","","","","","","","","","","","","","","","","","","","","","","","","","","","",{"$f":"IF(QG14<>\"\",(YEAR(QG14)*10000)+(MONTH(QG14)*100)+DAY(QG14),\"\")","v":""},"","","","","","","","","","","","","","","","","","","","","","","","","","","","","","","","","","","","","","","","","","","","","","","","","","","","","","","","",{"$f":"IF(SL14<>\"\",(YEAR(SL14)*10000)+(MONTH(SL14)*100)+DAY(SL14),\"\")","v":""},{"$f":"IF(SM14<>\"\",(YEAR(SM14)*10000)+(MONTH(SM14)*100)+DAY(SM14),\"\")","v":""},"","","","","","","","","","","","","","","","","","","","","","","","","","","","","","","","","","","","","","","","","","","","","","","","","","","","","","","","","","","","","","","",{"$f":"IF(UY14<>\"\",(YEAR(UY14)*10000)+(MONTH(UY14)*100)+DAY(UY14),\"\")","v":""},"","","","","","","","","","","","","","","","","","","","","","","","","","","","","","","","","","","","","","","","","","","","","","","","","","","","","","","","","","","","","","","",{"$f":"IF(XK14<>\"\",(YEAR(XK14)*10000)+(MONTH(XK14)*100)+DAY(XK14),\"\")","v":""},"","","","","","","","","","","","","","","","","","","","","","","","","","","","","","","","","","","","","","","","","","","","","","","","","","","","","","","","","","","","","","","",{"$f":"IF(ZW14<>\"\",(YEAR(ZW14)*10000)+(MONTH(ZW14)*100)+DAY(ZW14),\"\")","v":""},"","","","","","","","","","","","","","","","","","","","","","","","","","","","","","","","","","","","","","","","","","","","","","","","","","","","","","","","",{"$f":"IF(ACB14<>\"\",(YEAR(ACB14)*10000)+(MONTH(ACB14)*100)+DAY(ACB14),\"\")","v":""},{"$f":"IF(ACC14<>\"\",(YEAR(ACC14)*10000)+(MONTH(ACC14)*100)+DAY(ACC14),\"\")","v":""},"","","","","","","","","","","","","","","","","","","","","","","","","","","","","","","","","","","","","","","","","","","","","","","","","","","","","","","","","","","","","","","",{"$f":"IF(AEO14<>\"\",(YEAR(AEO14)*10000)+(MONTH(AEO14)*100)+DAY(AEO14),\"\")","v":""},"","","","","","","","","","","","","","","","","","","","","","","","","","","","","","","","","","","","","","","","","","","","","","","","","","","","","","","","","","","","","","","",{"$f":"IF(AHA14<>\"\",(YEAR(AHA14)*10000)+(MONTH(AHA14)*100)+DAY(AHA14),\"\")","v":""},"","","","","","","","","","","","","","","","","","","","","","","","","","","","","","","","","","","","","","","","","","","","","","","","","","","","","","","","","","","","","","","",{"$f":"IF(AJM14<>\"\",(YEAR(AJM14)*10000)+(MONTH(AJM14)*100)+DAY(AJM14),\"\")","v":""},"","","","","","","","","","","","","","","","","","","","","","","","","","","","","","","","","","","","","","","","","","","","","","","","","","","","","","","","","."]
[null,"2.2.V01",null,"CIRS_01 Cardiaco",null,null,null,null,null,null,null,null,null,null,null,null,null,null,null,null,null,null,null,null,null,null,null,null,null,null,null,null,null,null,null,null,null,null,null,null,null,null,null,null,null,null,null,null,null,null,null,null,null,null,null,null,null,null,null,null,null,null,null,null,null,null,null,null,null,null,null,null,null,null,null,null,null,null,null,null,null,null,null,null,null,null,null,null,null,null,null,null,null,null,null,null,null,null,null,null,null,null,null,null,null,null,null,null,null,null,null,null,null,null,null,null,null,null,null,null,null,null,null,null,null,null,null,null,null,null,null,null,null,null,null,null,null,null,null,null,null,null,null,null,null,null,null,null,null,null,null,null,null,null,null,null,null,null,null,null,null,null,null,null,null,null,null,null,null,null,null,null,null,null,null,null,null,null,null,null,null,null,null,null,null,null,null,null,null,null,null,null,null,null,null,null,null,null,null,null,null,null,null,null,null,null,null,null,null,null,null,null,null,null,null,null,null,null,null,null,null,null,null,null,null,null,null,null,null,null,null,null,null,null,null,null,null,null,null,null,null,null,null,null,null,null,null,null,null,null,null,null,null,null,null,null,null,null,null,null,null,null,null,null,null,null,null,null,null,null,null,null,null,null,null,null,null,null,null,null,null,null,null,null,null,null,null,null,null,null,null,null,null,null,null,null,null,null,null,null,null,null,null,null,null,null,null,null,null,null,null,null,null,null,null,null,null,null,null,null,null,null,null,null,null,null,null,null,null,null,null,null,null,null,null,null,null,null,null,null,null,null,null,null,null,null,null,null,null,null,null,null,null,null,null,null,null,null,null,null,null,null,null,null,null,null,null,null,null,null,null,null,null,null,null,null,null,null,null,null,null,null,null,null,null,null,null,null,null,null,null,null,null,null,null,null,null,null,null,null,null,null,null,null,null,null,null,null,null,null,null,null,null,null,null,null,null,null,null,null,null,null,null,null,null,null,null,null,null,null,null,null,null,null,null,null,null,null,null,null,null,null,null,null,null,null,null,null,null,null,null,null,null,null,null,null,null,null,null,null,null,null,null,null,null,null,null,null,null,null,null,null,null,null,null,null,null,null,null,null,null,null,null,null,null,null,null,null,null,null,null,null,null,null,null,null,null,null,null,null,null,null,null,null,null,null,null,null,null,null,null,null,null,null,null,null,null,null,null,null,null,null,null,null,null,null,null,null,null,null,null,null,null,null,null,null,null,null,null,null,null,null,null,null,null,null,null,null,null,null,null,null,null,null,null,null,null,null,null,null,null,null,null,null,null,null,null,null,null,null,null,null,null,null,null,null,null,null,null,null,null,null,null,null,null,null,null,null,null,null,null,null,null,null,null,null,null,null,null,null,null,null,null,null,null,null,null,null,null,null,null,null,null,null,null,null,null,null,null,null,null,null,null,null,null,null,null,null,null,null,null,null,null,null,null,null,null,null,null,null,null,null,null,null,null,null,null,null,null,null,null,null,null,null,null,null,null,null,null,null,null,null,null,null,null,null,null,null,null,null,null,null,null,null,null,null,null,null,null,null,null,null,null,null,null,null,null,null,null,null,null,null,null,null,null,null,null,null,null,null,null,null,null,null,null,null,null,null,null,null,null,null,null,null,null,null,null,null,null,null,null,null,null,null,null,null,null,null,null,null,null,null,null,null,null,null,null,null,null,null,null,null,null,null,null,null,null,null,null,null,null,null,null,null,null,null,null,null,null,null,null,null,null,null,null,null,null,null,null,null,null,null,null,null,null,null,null,null,null,null,null,null,null,null,null,null,null,null,null,null,null,null,null,null,null,null,null,null,null,null,null,null,null,null,null,null,null,null,null,null,null,null,null,null,null,null,null,null,null,null,null,null,null,null,null,null,null,null,null,null,null,null,null,null,null,null,null,null,null,null,null,null,null,null,null,null,null,null,null,null,null,null,null,null,null,null,null,null,null,null,null,null,null,null,null,null,null,null,null,null,null,null,null,null,null,null,null,null,null,null,null,null,null,null,null,null,null,null,null,null,null,null,null,null,null,null,null,null,null,null,null,null,null,null,null,null,null,null,null,null,null,null,null,null,null,null,null,null,null,null,null,null,null,null,null,null,null,null,null,null,null,null,null,null,null,null,null,null,null,null,null,null,null,null,null,null,null,null,null,null,null,null,null,null,null,null,null,null,null,null,null,null,null,null,null,null,null,null,null,null,null,null,null,null,null,null,null,null,null,null,null,null,null,null,null,null,null,null,null,null,null,null,null,null,null,null,null,null,null,null,null,null,null,null,null,"."]
[null,"2.2.V02",null,"CIRS_02 Ipertensione arteriosa",null,null,null,null,null,null,null,null,null,null,null,null,null,null,null,null,null,null,null,null,null,null,null,null,null,null,null,null,null,null,null,null,null,null,null,null,null,null,null,null,null,null,null,null,null,null,null,null,null,null,null,null,null,null,null,null,null,null,null,null,null,null,null,null,null,null,null,null,null,null,null,null,null,null,null,null,null,null,null,null,null,null,null,null,null,null,null,null,null,null,null,null,null,null,null,null,null,null,null,null,null,null,null,null,null,null,null,null,null,null,null,null,null,null,null,null,null,null,null,null,null,null,null,null,null,null,null,null,null,null,null,null,null,null,null,null,null,null,null,null,null,null,null,null,null,null,null,null,null,null,null,null,null,null,null,null,null,null,null,null,null,null,null,null,null,null,null,null,null,null,null,null,null,null,null,null,null,null,null,null,null,null,null,null,null,null,null,null,null,null,null,null,null,null,null,null,null,null,null,null,null,null,null,null,null,null,null,null,null,null,null,null,null,null,null,null,null,null,null,null,null,null,null,null,null,null,null,null,null,null,null,null,null,null,null,null,null,null,null,null,null,null,null,null,null,null,null,null,null,null,null,null,null,null,null,null,null,null,null,null,null,null,null,null,null,null,null,null,null,null,null,null,null,null,null,null,null,null,null,null,null,null,null,null,null,null,null,null,null,null,null,null,null,null,null,null,null,null,null,null,null,null,null,null,null,null,null,null,null,null,null,null,null,null,null,null,null,null,null,null,null,null,null,null,null,null,null,null,null,null,null,null,null,null,null,null,null,null,null,null,null,null,null,null,null,null,null,null,null,null,null,null,null,null,null,null,null,null,null,null,null,null,null,null,null,null,null,null,null,null,null,null,null,null,null,null,null,null,null,null,null,null,null,null,null,null,null,null,null,null,null,null,null,null,null,null,null,null,null,null,null,null,null,null,null,null,null,null,null,null,null,null,null,null,null,null,null,null,null,null,null,null,null,null,null,null,null,null,null,null,null,null,null,null,null,null,null,null,null,null,null,null,null,null,null,null,null,null,null,null,null,null,null,null,null,null,null,null,null,null,null,null,null,null,null,null,null,null,null,null,null,null,null,null,null,null,null,null,null,null,null,null,null,null,null,null,null,null,null,null,null,null,null,null,null,null,null,null,null,null,null,null,null,null,null,null,null,null,null,null,null,null,null,null,null,null,null,null,null,null,null,null,null,null,null,null,null,null,null,null,null,null,null,null,null,null,null,null,null,null,null,null,null,null,null,null,null,null,null,null,null,null,null,null,null,null,null,null,null,null,null,null,null,null,null,null,null,null,null,null,null,null,null,null,null,null,null,null,null,null,null,null,null,null,null,null,null,null,null,null,null,null,null,null,null,null,null,null,null,null,null,null,null,null,null,null,null,null,null,null,null,null,null,null,null,null,null,null,null,null,null,null,null,null,null,null,null,null,null,null,null,null,null,null,null,null,null,null,null,null,null,null,null,null,null,null,null,null,null,null,null,null,null,null,null,null,null,null,null,null,null,null,null,null,null,null,null,null,null,null,null,null,null,null,null,null,null,null,null,null,null,null,null,null,null,null,null,null,null,null,null,null,null,null,null,null,null,null,null,null,null,null,null,null,null,null,null,null,null,null,null,null,null,null,null,null,null,null,null,null,null,null,null,null,null,null,null,null,null,null,null,null,null,null,null,null,null,null,null,null,null,null,null,null,null,null,null,null,null,null,null,null,null,null,null,null,null,null,null,null,null,null,null,null,null,null,null,null,null,null,null,null,null,null,null,null,null,null,null,null,null,null,null,null,null,null,null,null,null,null,null,null,null,null,null,null,null,null,null,null,null,null,null,null,null,null,null,null,null,null,null,null,null,null,null,null,null,null,null,null,null,null,null,null,null,null,null,null,null,null,null,null,null,null,null,null,null,null,null,null,null,null,null,null,null,null,null,null,null,null,null,null,null,null,null,null,null,null,null,null,null,null,null,null,null,null,null,null,null,null,null,null,null,null,null,null,null,null,null,null,null,null,null,null,null,null,null,null,null,null,null,null,null,null,null,null,null,null,null,null,null,null,null,null,null,null,null,null,null,null,null,null,null,null,null,null,null,null,null,null,null,null,null,null,null,null,null,null,null,null,null,null,null,null,null,null,null,null,null,null,null,null,null,null,null,null,null,null,null,null,null,null,null,null,null,null,null,null,null,null,null,null,null,null,null,null,null,null,null,null,null,null,null,null,null,null,null,null,null,null,null,null,null,null,null,null,null,null,null,null,null,null,null,null,null,null,null,null,null,null,null,"."]
[null,"2.2.V03",null,"CIRS_03 Vascolare",null,null,null,null,null,null,null,null,null,null,null,null,null,null,null,null,null,null,null,null,null,null,null,null,null,null,null,null,null,null,null,null,null,null,null,null,null,null,null,null,null,null,null,null,null,null,null,null,null,null,null,null,null,null,null,null,null,null,null,null,null,null,null,null,null,null,null,null,null,null,null,null,null,null,null,null,null,null,null,null,null,null,null,null,null,null,null,null,null,null,null,null,null,null,null,null,null,null,null,null,null,null,null,null,null,null,null,null,null,null,null,null,null,null,null,null,null,null,null,null,null,null,null,null,null,null,null,null,null,null,null,null,null,null,null,null,null,null,null,null,null,null,null,null,null,null,null,null,null,null,null,null,null,null,null,null,null,null,null,null,null,null,null,null,null,null,null,null,null,null,null,null,null,null,null,null,null,null,null,null,null,null,null,null,null,null,null,null,null,null,null,null,null,null,null,null,null,null,null,null,null,null,null,null,null,null,null,null,null,null,null,null,null,null,null,null,null,null,null,null,null,null,null,null,null,null,null,null,null,null,null,null,null,null,null,null,null,null,null,null,null,null,null,null,null,null,null,null,null,null,null,null,null,null,null,null,null,null,null,null,null,null,null,null,null,null,null,null,null,null,null,null,null,null,null,null,null,null,null,null,null,null,null,null,null,null,null,null,null,null,null,null,null,null,null,null,null,null,null,null,null,null,null,null,null,null,null,null,null,null,null,null,null,null,null,null,null,null,null,null,null,null,null,null,null,null,null,null,null,null,null,null,null,null,null,null,null,null,null,null,null,null,null,null,null,null,null,null,null,null,null,null,null,null,null,null,null,null,null,null,null,null,null,null,null,null,null,null,null,null,null,null,null,null,null,null,null,null,null,null,null,null,null,null,null,null,null,null,null,null,null,null,null,null,null,null,null,null,null,null,null,null,null,null,null,null,null,null,null,null,null,null,null,null,null,null,null,null,null,null,null,null,null,null,null,null,null,null,null,null,null,null,null,null,null,null,null,null,null,null,null,null,null,null,null,null,null,null,null,null,null,null,null,null,null,null,null,null,null,null,null,null,null,null,null,null,null,null,null,null,null,null,null,null,null,null,null,null,null,null,null,null,null,null,null,null,null,null,null,null,null,null,null,null,null,null,null,null,null,null,null,null,null,null,null,null,null,null,null,null,null,null,null,null,null,null,null,null,null,null,null,null,null,null,null,null,null,null,null,null,null,null,null,null,null,null,null,null,null,null,null,null,null,null,null,null,null,null,null,null,null,null,null,null,null,null,null,null,null,null,null,null,null,null,null,null,null,null,null,null,null,null,null,null,null,null,null,null,null,null,null,null,null,null,null,null,null,null,null,null,null,null,null,null,null,null,null,null,null,null,null,null,null,null,null,null,null,null,null,null,null,null,null,null,null,null,null,null,null,null,null,null,null,null,null,null,null,null,null,null,null,null,null,null,null,null,null,null,null,null,null,null,null,null,null,null,null,null,null,null,null,null,null,null,null,null,null,null,null,null,null,null,null,null,null,null,null,null,null,null,null,null,null,null,null,null,null,null,null,null,null,null,null,null,null,null,null,null,null,null,null,null,null,null,null,null,null,null,null,null,null,null,null,null,null,null,null,null,null,null,null,null,null,null,null,null,null,null,null,null,null,null,null,null,null,null,null,null,null,null,null,null,null,null,null,null,null,null,null,null,null,null,null,null,null,null,null,null,null,null,null,null,null,null,null,null,null,null,null,null,null,null,null,null,null,null,null,null,null,null,null,null,null,null,null,null,null,null,null,null,null,null,null,null,null,null,null,null,null,null,null,null,null,null,null,null,null,null,null,null,null,null,null,null,null,null,null,null,null,null,null,null,null,null,null,null,null,null,null,null,null,null,null,null,null,null,null,null,null,null,null,null,null,null,null,null,null,null,null,null,null,null,null,null,null,null,null,null,null,null,null,null,null,null,null,null,null,null,null,null,null,null,null,null,null,null,null,null,null,null,null,null,null,null,null,null,null,null,null,null,null,null,null,null,null,null,null,null,null,null,null,null,null,null,null,null,null,null,null,null,null,null,null,null,null,null,null,null,null,null,null,null,null,null,null,null,null,null,null,null,null,null,null,null,null,null,null,null,null,null,null,null,null,null,null,null,null,null,null,null,null,null,null,null,null,null,null,null,null,null,null,null,null,null,null,null,null,null,null,null,null,null,null,null,null,null,null,null,null,null,null,null,null,null,null,null,null,null,null,null,null,null,null,null,null,null,null,null,null,null,null,null,null,null,null,null,null,null,null,null,null,"."]
[null,"2.2.V04",null,"CIRS_04 Apparato respiratorio ",null,null,null,null,null,null,null,null,null,null,null,null,null,null,null,null,null,null,null,null,null,null,null,null,null,null,null,null,null,null,null,null,null,null,null,null,null,null,null,null,null,null,null,null,null,null,null,null,null,null,null,null,null,null,null,null,null,null,null,null,null,null,null,null,null,null,null,null,null,null,null,null,null,null,null,null,null,null,null,null,null,null,null,null,null,null,null,null,null,null,null,null,null,null,null,null,null,null,null,null,null,null,null,null,null,null,null,null,null,null,null,null,null,null,null,null,null,null,null,null,null,null,null,null,null,null,null,null,null,null,null,null,null,null,null,null,null,null,null,null,null,null,null,null,null,null,null,null,null,null,null,null,null,null,null,null,null,null,null,null,null,null,null,null,null,null,null,null,null,null,null,null,null,null,null,null,null,null,null,null,null,null,null,null,null,null,null,null,null,null,null,null,null,null,null,null,null,null,null,null,null,null,null,null,null,null,null,null,null,null,null,null,null,null,null,null,null,null,null,null,null,null,null,null,null,null,null,null,null,null,null,null,null,null,null,null,null,null,null,null,null,null,null,null,null,null,null,null,null,null,null,null,null,null,null,null,null,null,null,null,null,null,null,null,null,null,null,null,null,null,null,null,null,null,null,null,null,null,null,null,null,null,null,null,null,null,null,null,null,null,null,null,null,null,null,null,null,null,null,null,null,null,null,null,null,null,null,null,null,null,null,null,null,null,null,null,null,null,null,null,null,null,null,null,null,null,null,null,null,null,null,null,null,null,null,null,null,null,null,null,null,null,null,null,null,null,null,null,null,null,null,null,null,null,null,null,null,null,null,null,null,null,null,null,null,null,null,null,null,null,null,null,null,null,null,null,null,null,null,null,null,null,null,null,null,null,null,null,null,null,null,null,null,null,null,null,null,null,null,null,null,null,null,null,null,null,null,null,null,null,null,null,null,null,null,null,null,null,null,null,null,null,null,null,null,null,null,null,null,null,null,null,null,null,null,null,null,null,null,null,null,null,null,null,null,null,null,null,null,null,null,null,null,null,null,null,null,null,null,null,null,null,null,null,null,null,null,null,null,null,null,null,null,null,null,null,null,null,null,null,null,null,null,null,null,null,null,null,null,null,null,null,null,null,null,null,null,null,null,null,null,null,null,null,null,null,null,null,null,null,null,null,null,null,null,null,null,null,null,null,null,null,null,null,null,null,null,null,null,null,null,null,null,null,null,null,null,null,null,null,null,null,null,null,null,null,null,null,null,null,null,null,null,null,null,null,null,null,null,null,null,null,null,null,null,null,null,null,null,null,null,null,null,null,null,null,null,null,null,null,null,null,null,null,null,null,null,null,null,null,null,null,null,null,null,null,null,null,null,null,null,null,null,null,null,null,null,null,null,null,null,null,null,null,null,null,null,null,null,null,null,null,null,null,null,null,null,null,null,null,null,null,null,null,null,null,null,null,null,null,null,null,null,null,null,null,null,null,null,null,null,null,null,null,null,null,null,null,null,null,null,null,null,null,null,null,null,null,null,null,null,null,null,null,null,null,null,null,null,null,null,null,null,null,null,null,null,null,null,null,null,null,null,null,null,null,null,null,null,null,null,null,null,null,null,null,null,null,null,null,null,null,null,null,null,null,null,null,null,null,null,null,null,null,null,null,null,null,null,null,null,null,null,null,null,null,null,null,null,null,null,null,null,null,null,null,null,null,null,null,null,null,null,null,null,null,null,null,null,null,null,null,null,null,null,null,null,null,null,null,null,null,null,null,null,null,null,null,null,null,null,null,null,null,null,null,null,null,null,null,null,null,null,null,null,null,null,null,null,null,null,null,null,null,null,null,null,null,null,null,null,null,null,null,null,null,null,null,null,null,null,null,null,null,null,null,null,null,null,null,null,null,null,null,null,null,null,null,null,null,null,null,null,null,null,null,null,null,null,null,null,null,null,null,null,null,null,null,null,null,null,null,null,null,null,null,null,null,null,null,null,null,null,null,null,null,null,null,null,null,null,null,null,null,null,null,null,null,null,null,null,null,null,null,null,null,null,null,null,null,null,null,null,null,null,null,null,null,null,null,null,null,null,null,null,null,null,null,null,null,null,null,null,null,null,null,null,null,null,null,null,null,null,null,null,null,null,null,null,null,null,null,null,null,null,null,null,null,null,null,null,null,null,null,null,null,null,null,null,null,null,null,null,null,null,null,null,null,null,null,null,null,null,null,null,null,null,null,null,null,null,null,null,null,null,null,null,null,null,null,null,null,null,null,null,null,null,null,null,null,null,"."]
[null,"2.2.V05",null,"CIRS_05 Occhi, orecchie, naso, faringe, laringe",null,null,null,null,null,null,null,null,null,null,null,null,null,null,null,null,null,null,null,null,null,null,null,null,null,null,null,null,null,null,null,null,null,null,null,null,null,null,null,null,null,null,null,null,null,null,null,null,null,null,null,null,null,null,null,null,null,null,null,null,null,null,null,null,null,null,null,null,null,null,null,null,null,null,null,null,null,null,null,null,null,null,null,null,null,null,null,null,null,null,null,null,null,null,null,null,null,null,null,null,null,null,null,null,null,null,null,null,null,null,null,null,null,null,null,null,null,null,null,null,null,null,null,null,null,null,null,null,null,null,null,null,null,null,null,null,null,null,null,null,null,null,null,null,null,null,null,null,null,null,null,null,null,null,null,null,null,null,null,null,null,null,null,null,null,null,null,null,null,null,null,null,null,null,null,null,null,null,null,null,null,null,null,null,null,null,null,null,null,null,null,null,null,null,null,null,null,null,null,null,null,null,null,null,null,null,null,null,null,null,null,null,null,null,null,null,null,null,null,null,null,null,null,null,null,null,null,null,null,null,null,null,null,null,null,null,null,null,null,null,null,null,null,null,null,null,null,null,null,null,null,null,null,null,null,null,null,null,null,null,null,null,null,null,null,null,null,null,null,null,null,null,null,null,null,null,null,null,null,null,null,null,null,null,null,null,null,null,null,null,null,null,null,null,null,null,null,null,null,null,null,null,null,null,null,null,null,null,null,null,null,null,null,null,null,null,null,null,null,null,null,null,null,null,null,null,null,null,null,null,null,null,null,null,null,null,null,null,null,null,null,null,null,null,null,null,null,null,null,null,null,null,null,null,null,null,null,null,null,null,null,null,null,null,null,null,null,null,null,null,null,null,null,null,null,null,null,null,null,null,null,null,null,null,null,null,null,null,null,null,null,null,null,null,null,null,null,null,null,null,null,null,null,null,null,null,null,null,null,null,null,null,null,null,null,null,null,null,null,null,null,null,null,null,null,null,null,null,null,null,null,null,null,null,null,null,null,null,null,null,null,null,null,null,null,null,null,null,null,null,null,null,null,null,null,null,null,null,null,null,null,null,null,null,null,null,null,null,null,null,null,null,null,null,null,null,null,null,null,null,null,null,null,null,null,null,null,null,null,null,null,null,null,null,null,null,null,null,null,null,null,null,null,null,null,null,null,null,null,null,null,null,null,null,null,null,null,null,null,null,null,null,null,null,null,null,null,null,null,null,null,null,null,null,null,null,null,null,null,null,null,null,null,null,null,null,null,null,null,null,null,null,null,null,null,null,null,null,null,null,null,null,null,null,null,null,null,null,null,null,null,null,null,null,null,null,null,null,null,null,null,null,null,null,null,null,null,null,null,null,null,null,null,null,null,null,null,null,null,null,null,null,null,null,null,null,null,null,null,null,null,null,null,null,null,null,null,null,null,null,null,null,null,null,null,null,null,null,null,null,null,null,null,null,null,null,null,null,null,null,null,null,null,null,null,null,null,null,null,null,null,null,null,null,null,null,null,null,null,null,null,null,null,null,null,null,null,null,null,null,null,null,null,null,null,null,null,null,null,null,null,null,null,null,null,null,null,null,null,null,null,null,null,null,null,null,null,null,null,null,null,null,null,null,null,null,null,null,null,null,null,null,null,null,null,null,null,null,null,null,null,null,null,null,null,null,null,null,null,null,null,null,null,null,null,null,null,null,null,null,null,null,null,null,null,null,null,null,null,null,null,null,null,null,null,null,null,null,null,null,null,null,null,null,null,null,null,null,null,null,null,null,null,null,null,null,null,null,null,null,null,null,null,null,null,null,null,null,null,null,null,null,null,null,null,null,null,null,null,null,null,null,null,null,null,null,null,null,null,null,null,null,null,null,null,null,null,null,null,null,null,null,null,null,null,null,null,null,null,null,null,null,null,null,null,null,null,null,null,null,null,null,null,null,null,null,null,null,null,null,null,null,null,null,null,null,null,null,null,null,null,null,null,null,null,null,null,null,null,null,null,null,null,null,null,null,null,null,null,null,null,null,null,null,null,null,null,null,null,null,null,null,null,null,null,null,null,null,null,null,null,null,null,null,null,null,null,null,null,null,null,null,null,null,null,null,null,null,null,null,null,null,null,null,null,null,null,null,null,null,null,null,null,null,null,null,null,null,null,null,null,null,null,null,null,null,null,null,null,null,null,null,null,null,null,null,null,null,null,null,null,null,null,null,null,null,null,null,null,null,null,null,null,null,null,null,null,null,null,null,null,null,null,null,null,null,null,null,null,null,null,null,null,null,null,null,null,null,null,null,null,"."]
[null,"2.2.V06",null,"CIRS_06 Apparato gastro-intestinale superiore ",null,null,null,null,null,null,null,null,null,null,null,null,null,null,null,null,null,null,null,null,null,null,null,null,null,null,null,null,null,null,null,null,null,null,null,null,null,null,null,null,null,null,null,null,null,null,null,null,null,null,null,null,null,null,null,null,null,null,null,null,null,null,null,null,null,null,null,null,null,null,null,null,null,null,null,null,null,null,null,null,null,null,null,null,null,null,null,null,null,null,null,null,null,null,null,null,null,null,null,null,null,null,null,null,null,null,null,null,null,null,null,null,null,null,null,null,null,null,null,null,null,null,null,null,null,null,null,null,null,null,null,null,null,null,null,null,null,null,null,null,null,null,null,null,null,null,null,null,null,null,null,null,null,null,null,null,null,null,null,null,null,null,null,null,null,null,null,null,null,null,null,null,null,null,null,null,null,null,null,null,null,null,null,null,null,null,null,null,null,null,null,null,null,null,null,null,null,null,null,null,null,null,null,null,null,null,null,null,null,null,null,null,null,null,null,null,null,null,null,null,null,null,null,null,null,null,null,null,null,null,null,null,null,null,null,null,null,null,null,null,null,null,null,null,null,null,null,null,null,null,null,null,null,null,null,null,null,null,null,null,null,null,null,null,null,null,null,null,null,null,null,null,null,null,null,null,null,null,null,null,null,null,null,null,null,null,null,null,null,null,null,null,null,null,null,null,null,null,null,null,null,null,null,null,null,null,null,null,null,null,null,null,null,null,null,null,null,null,null,null,null,null,null,null,null,null,null,null,null,null,null,null,null,null,null,null,null,null,null,null,null,null,null,null,null,null,null,null,null,null,null,null,null,null,null,null,null,null,null,null,null,null,null,null,null,null,null,null,null,null,null,null,null,null,null,null,null,null,null,null,null,null,null,null,null,null,null,null,null,null,null,null,null,null,null,null,null,null,null,null,null,null,null,null,null,null,null,null,null,null,null,null,null,null,null,null,null,null,null,null,null,null,null,null,null,null,null,null,null,null,null,null,null,null,null,null,null,null,null,null,null,null,null,null,null,null,null,null,null,null,null,null,null,null,null,null,null,null,null,null,null,null,null,null,null,null,null,null,null,null,null,null,null,null,null,null,null,null,null,null,null,null,null,null,null,null,null,null,null,null,null,null,null,null,null,null,null,null,null,null,null,null,null,null,null,null,null,null,null,null,null,null,null,null,null,null,null,null,null,null,null,null,null,null,null,null,null,null,null,null,null,null,null,null,null,null,null,null,null,null,null,null,null,null,null,null,null,null,null,null,null,null,null,null,null,null,null,null,null,null,null,null,null,null,null,null,null,null,null,null,null,null,null,null,null,null,null,null,null,null,null,null,null,null,null,null,null,null,null,null,null,null,null,null,null,null,null,null,null,null,null,null,null,null,null,null,null,null,null,null,null,null,null,null,null,null,null,null,null,null,null,null,null,null,null,null,null,null,null,null,null,null,null,null,null,null,null,null,null,null,null,null,null,null,null,null,null,null,null,null,null,null,null,null,null,null,null,null,null,null,null,null,null,null,null,null,null,null,null,null,null,null,null,null,null,null,null,null,null,null,null,null,null,null,null,null,null,null,null,null,null,null,null,null,null,null,null,null,null,null,null,null,null,null,null,null,null,null,null,null,null,null,null,null,null,null,null,null,null,null,null,null,null,null,null,null,null,null,null,null,null,null,null,null,null,null,null,null,null,null,null,null,null,null,null,null,null,null,null,null,null,null,null,null,null,null,null,null,null,null,null,null,null,null,null,null,null,null,null,null,null,null,null,null,null,null,null,null,null,null,null,null,null,null,null,null,null,null,null,null,null,null,null,null,null,null,null,null,null,null,null,null,null,null,null,null,null,null,null,null,null,null,null,null,null,null,null,null,null,null,null,null,null,null,null,null,null,null,null,null,null,null,null,null,null,null,null,null,null,null,null,null,null,null,null,null,null,null,null,null,null,null,null,null,null,null,null,null,null,null,null,null,null,null,null,null,null,null,null,null,null,null,null,null,null,null,null,null,null,null,null,null,null,null,null,null,null,null,null,null,null,null,null,null,null,null,null,null,null,null,null,null,null,null,null,null,null,null,null,null,null,null,null,null,null,null,null,null,null,null,null,null,null,null,null,null,null,null,null,null,null,null,null,null,null,null,null,null,null,null,null,null,null,null,null,null,null,null,null,null,null,null,null,null,null,null,null,null,null,null,null,null,null,null,null,null,null,null,null,null,null,null,null,null,null,null,null,null,null,null,null,null,null,null,null,null,null,null,null,null,null,null,null,null,null,null,null,null,null,null,null,"."]
[null,"2.2.V07",null,"CIRS_07 Apparato gastro-intestinale inferiore",null,null,null,null,null,null,null,null,null,null,null,null,null,null,null,null,null,null,null,null,null,null,null,null,null,null,null,null,null,null,null,null,null,null,null,null,null,null,null,null,null,null,null,null,null,null,null,null,null,null,null,null,null,null,null,null,null,null,null,null,null,null,null,null,null,null,null,null,null,null,null,null,null,null,null,null,null,null,null,null,null,null,null,null,null,null,null,null,null,null,null,null,null,null,null,null,null,null,null,null,null,null,null,null,null,null,null,null,null,null,null,null,null,null,null,null,null,null,null,null,null,null,null,null,null,null,null,null,null,null,null,null,null,null,null,null,null,null,null,null,null,null,null,null,null,null,null,null,null,null,null,null,null,null,null,null,null,null,null,null,null,null,null,null,null,null,null,null,null,null,null,null,null,null,null,null,null,null,null,null,null,null,null,null,null,null,null,null,null,null,null,null,null,null,null,null,null,null,null,null,null,null,null,null,null,null,null,null,null,null,null,null,null,null,null,null,null,null,null,null,null,null,null,null,null,null,null,null,null,null,null,null,null,null,null,null,null,null,null,null,null,null,null,null,null,null,null,null,null,null,null,null,null,null,null,null,null,null,null,null,null,null,null,null,null,null,null,null,null,null,null,null,null,null,null,null,null,null,null,null,null,null,null,null,null,null,null,null,null,null,null,null,null,null,null,null,null,null,null,null,null,null,null,null,null,null,null,null,null,null,null,null,null,null,null,null,null,null,null,null,null,null,null,null,null,null,null,null,null,null,null,null,null,null,null,null,null,null,null,null,null,null,null,null,null,null,null,null,null,null,null,null,null,null,null,null,null,null,null,null,null,null,null,null,null,null,null,null,null,null,null,null,null,null,null,null,null,null,null,null,null,null,null,null,null,null,null,null,null,null,null,null,null,null,null,null,null,null,null,null,null,null,null,null,null,null,null,null,null,null,null,null,null,null,null,null,null,null,null,null,null,null,null,null,null,null,null,null,null,null,null,null,null,null,null,null,null,null,null,null,null,null,null,null,null,null,null,null,null,null,null,null,null,null,null,null,null,null,null,null,null,null,null,null,null,null,null,null,null,null,null,null,null,null,null,null,null,null,null,null,null,null,null,null,null,null,null,null,null,null,null,null,null,null,null,null,null,null,null,null,null,null,null,null,null,null,null,null,null,null,null,null,null,null,null,null,null,null,null,null,null,null,null,null,null,null,null,null,null,null,null,null,null,null,null,null,null,null,null,null,null,null,null,null,null,null,null,null,null,null,null,null,null,null,null,null,null,null,null,null,null,null,null,null,null,null,null,null,null,null,null,null,null,null,null,null,null,null,null,null,null,null,null,null,null,null,null,null,null,null,null,null,null,null,null,null,null,null,null,null,null,null,null,null,null,null,null,null,null,null,null,null,null,null,null,null,null,null,null,null,null,null,null,null,null,null,null,null,null,null,null,null,null,null,null,null,null,null,null,null,null,null,null,null,null,null,null,null,null,null,null,null,null,null,null,null,null,null,null,null,null,null,null,null,null,null,null,null,null,null,null,null,null,null,null,null,null,null,null,null,null,null,null,null,null,null,null,null,null,null,null,null,null,null,null,null,null,null,null,null,null,null,null,null,null,null,null,null,null,null,null,null,null,null,null,null,null,null,null,null,null,null,null,null,null,null,null,null,null,null,null,null,null,null,null,null,null,null,null,null,null,null,null,null,null,null,null,null,null,null,null,null,null,null,null,null,null,null,null,null,null,null,null,null,null,null,null,null,null,null,null,null,null,null,null,null,null,null,null,null,null,null,null,null,null,null,null,null,null,null,null,null,null,null,null,null,null,null,null,null,null,null,null,null,null,null,null,null,null,null,null,null,null,null,null,null,null,null,null,null,null,null,null,null,null,null,null,null,null,null,null,null,null,null,null,null,null,null,null,null,null,null,null,null,null,null,null,null,null,null,null,null,null,null,null,null,null,null,null,null,null,null,null,null,null,null,null,null,null,null,null,null,null,null,null,null,null,null,null,null,null,null,null,null,null,null,null,null,null,null,null,null,null,null,null,null,null,null,null,null,null,null,null,null,null,null,null,null,null,null,null,null,null,null,null,null,null,null,null,null,null,null,null,null,null,null,null,null,null,null,null,null,null,null,null,null,null,null,null,null,null,null,null,null,null,null,null,null,null,null,null,null,null,null,null,null,null,null,null,null,null,null,null,null,null,null,null,null,null,null,null,null,null,null,null,null,null,null,null,null,null,null,null,null,null,null,null,null,null,null,null,null,null,null,null,null,null,null,null,null,null,"."]
[null,"2.2.V08",null,"CIRS_08 Epatico",null,null,null,null,null,null,null,null,null,null,null,null,null,null,null,null,null,null,null,null,null,null,null,null,null,null,null,null,null,null,null,null,null,null,null,null,null,null,null,null,null,null,null,null,null,null,null,null,null,null,null,null,null,null,null,null,null,null,null,null,null,null,null,null,null,null,null,null,null,null,null,null,null,null,null,null,null,null,null,null,null,null,null,null,null,null,null,null,null,null,null,null,null,null,null,null,null,null,null,null,null,null,null,null,null,null,null,null,null,null,null,null,null,null,null,null,null,null,null,null,null,null,null,null,null,null,null,null,null,null,null,null,null,null,null,null,null,null,null,null,null,null,null,null,null,null,null,null,null,null,null,null,null,null,null,null,null,null,null,null,null,null,null,null,null,null,null,null,null,null,null,null,null,null,null,null,null,null,null,null,null,null,null,null,null,null,null,null,null,null,null,null,null,null,null,null,null,null,null,null,null,null,null,null,null,null,null,null,null,null,null,null,null,null,null,null,null,null,null,null,null,null,null,null,null,null,null,null,null,null,null,null,null,null,null,null,null,null,null,null,null,null,null,null,null,null,null,null,null,null,null,null,null,null,null,null,null,null,null,null,null,null,null,null,null,null,null,null,null,null,null,null,null,null,null,null,null,null,null,null,null,null,null,null,null,null,null,null,null,null,null,null,null,null,null,null,null,null,null,null,null,null,null,null,null,null,null,null,null,null,null,null,null,null,null,null,null,null,null,null,null,null,null,null,null,null,null,null,null,null,null,null,null,null,null,null,null,null,null,null,null,null,null,null,null,null,null,null,null,null,null,null,null,null,null,null,null,null,null,null,null,null,null,null,null,null,null,null,null,null,null,null,null,null,null,null,null,null,null,null,null,null,null,null,null,null,null,null,null,null,null,null,null,null,null,null,null,null,null,null,null,null,null,null,null,null,null,null,null,null,null,null,null,null,null,null,null,null,null,null,null,null,null,null,null,null,null,null,null,null,null,null,null,null,null,null,null,null,null,null,null,null,null,null,null,null,null,null,null,null,null,null,null,null,null,null,null,null,null,null,null,null,null,null,null,null,null,null,null,null,null,null,null,null,null,null,null,null,null,null,null,null,null,null,null,null,null,null,null,null,null,null,null,null,null,null,null,null,null,null,null,null,null,null,null,null,null,null,null,null,null,null,null,null,null,null,null,null,null,null,null,null,null,null,null,null,null,null,null,null,null,null,null,null,null,null,null,null,null,null,null,null,null,null,null,null,null,null,null,null,null,null,null,null,null,null,null,null,null,null,null,null,null,null,null,null,null,null,null,null,null,null,null,null,null,null,null,null,null,null,null,null,null,null,null,null,null,null,null,null,null,null,null,null,null,null,null,null,null,null,null,null,null,null,null,null,null,null,null,null,null,null,null,null,null,null,null,null,null,null,null,null,null,null,null,null,null,null,null,null,null,null,null,null,null,null,null,null,null,null,null,null,null,null,null,null,null,null,null,null,null,null,null,null,null,null,null,null,null,null,null,null,null,null,null,null,null,null,null,null,null,null,null,null,null,null,null,null,null,null,null,null,null,null,null,null,null,null,null,null,null,null,null,null,null,null,null,null,null,null,null,null,null,null,null,null,null,null,null,null,null,null,null,null,null,null,null,null,null,null,null,null,null,null,null,null,null,null,null,null,null,null,null,null,null,null,null,null,null,null,null,null,null,null,null,null,null,null,null,null,null,null,null,null,null,null,null,null,null,null,null,null,null,null,null,null,null,null,null,null,null,null,null,null,null,null,null,null,null,null,null,null,null,null,null,null,null,null,null,null,null,null,null,null,null,null,null,null,null,null,null,null,null,null,null,null,null,null,null,null,null,null,null,null,null,null,null,null,null,null,null,null,null,null,null,null,null,null,null,null,null,null,null,null,null,null,null,null,null,null,null,null,null,null,null,null,null,null,null,null,null,null,null,null,null,null,null,null,null,null,null,null,null,null,null,null,null,null,null,null,null,null,null,null,null,null,null,null,null,null,null,null,null,null,null,null,null,null,null,null,null,null,null,null,null,null,null,null,null,null,null,null,null,null,null,null,null,null,null,null,null,null,null,null,null,null,null,null,null,null,null,null,null,null,null,null,null,null,null,null,null,null,null,null,null,null,null,null,null,null,null,null,null,null,null,null,null,null,null,null,null,null,null,null,null,null,null,null,null,null,null,null,null,null,null,null,null,null,null,null,null,null,null,null,null,null,null,null,null,null,null,null,null,null,null,null,null,null,null,null,null,null,null,null,null,null,null,null,null,null,null,"."]
[null,"2.2.V09",null,"CIRS_09 Renale",null,null,null,null,null,null,null,null,null,null,null,null,null,null,null,null,null,null,null,null,null,null,null,null,null,null,null,null,null,null,null,null,null,null,null,null,null,null,null,null,null,null,null,null,null,null,null,null,null,null,null,null,null,null,null,null,null,null,null,null,null,null,null,null,null,null,null,null,null,null,null,null,null,null,null,null,null,null,null,null,null,null,null,null,null,null,null,null,null,null,null,null,null,null,null,null,null,null,null,null,null,null,null,null,null,null,null,null,null,null,null,null,null,null,null,null,null,null,null,null,null,null,null,null,null,null,null,null,null,null,null,null,null,null,null,null,null,null,null,null,null,null,null,null,null,null,null,null,null,null,null,null,null,null,null,null,null,null,null,null,null,null,null,null,null,null,null,null,null,null,null,null,null,null,null,null,null,null,null,null,null,null,null,null,null,null,null,null,null,null,null,null,null,null,null,null,null,null,null,null,null,null,null,null,null,null,null,null,null,null,null,null,null,null,null,null,null,null,null,null,null,null,null,null,null,null,null,null,null,null,null,null,null,null,null,null,null,null,null,null,null,null,null,null,null,null,null,null,null,null,null,null,null,null,null,null,null,null,null,null,null,null,null,null,null,null,null,null,null,null,null,null,null,null,null,null,null,null,null,null,null,null,null,null,null,null,null,null,null,null,null,null,null,null,null,null,null,null,null,null,null,null,null,null,null,null,null,null,null,null,null,null,null,null,null,null,null,null,null,null,null,null,null,null,null,null,null,null,null,null,null,null,null,null,null,null,null,null,null,null,null,null,null,null,null,null,null,null,null,null,null,null,null,null,null,null,null,null,null,null,null,null,null,null,null,null,null,null,null,null,null,null,null,null,null,null,null,null,null,null,null,null,null,null,null,null,null,null,null,null,null,null,null,null,null,null,null,null,null,null,null,null,null,null,null,null,null,null,null,null,null,null,null,null,null,null,null,null,null,null,null,null,null,null,null,null,null,null,null,null,null,null,null,null,null,null,null,null,null,null,null,null,null,null,null,null,null,null,null,null,null,null,null,null,null,null,null,null,null,null,null,null,null,null,null,null,null,null,null,null,null,null,null,null,null,null,null,null,null,null,null,null,null,null,null,null,null,null,null,null,null,null,null,null,null,null,null,null,null,null,null,null,null,null,null,null,null,null,null,null,null,null,null,null,null,null,null,null,null,null,null,null,null,null,null,null,null,null,null,null,null,null,null,null,null,null,null,null,null,null,null,null,null,null,null,null,null,null,null,null,null,null,null,null,null,null,null,null,null,null,null,null,null,null,null,null,null,null,null,null,null,null,null,null,null,null,null,null,null,null,null,null,null,null,null,null,null,null,null,null,null,null,null,null,null,null,null,null,null,null,null,null,null,null,null,null,null,null,null,null,null,null,null,null,null,null,null,null,null,null,null,null,null,null,null,null,null,null,null,null,null,null,null,null,null,null,null,null,null,null,null,null,null,null,null,null,null,null,null,null,null,null,null,null,null,null,null,null,null,null,null,null,null,null,null,null,null,null,null,null,null,null,null,null,null,null,null,null,null,null,null,null,null,null,null,null,null,null,null,null,null,null,null,null,null,null,null,null,null,null,null,null,null,null,null,null,null,null,null,null,null,null,null,null,null,null,null,null,null,null,null,null,null,null,null,null,null,null,null,null,null,null,null,null,null,null,null,null,null,null,null,null,null,null,null,null,null,null,null,null,null,null,null,null,null,null,null,null,null,null,null,null,null,null,null,null,null,null,null,null,null,null,null,null,null,null,null,null,null,null,null,null,null,null,null,null,null,null,null,null,null,null,null,null,null,null,null,null,null,null,null,null,null,null,null,null,null,null,null,null,null,null,null,null,null,null,null,null,null,null,null,null,null,null,null,null,null,null,null,null,null,null,null,null,null,null,null,null,null,null,null,null,null,null,null,null,null,null,null,null,null,null,null,null,null,null,null,null,null,null,null,null,null,null,null,null,null,null,null,null,null,null,null,null,null,null,null,null,null,null,null,null,null,null,null,null,null,null,null,null,null,null,null,null,null,null,null,null,null,null,null,null,null,null,null,null,null,null,null,null,null,null,null,null,null,null,null,null,null,null,null,null,null,null,null,null,null,null,null,null,null,null,null,null,null,null,null,null,null,null,null,null,null,null,null,null,null,null,null,null,null,null,null,null,null,null,null,null,null,null,null,null,null,null,null,null,null,null,null,null,null,null,null,null,null,null,null,null,null,null,null,null,null,null,null,null,null,null,null,null,null,null,null,null,null,null,null,null,null,null,null,"."]
[null,"2.2.V10",null,"CIRS_10 Apparato genito-urinario",null,null,null,null,null,null,null,null,null,null,null,null,null,null,null,null,null,null,null,null,null,null,null,null,null,null,null,null,null,null,null,null,null,null,null,null,null,null,null,null,null,null,null,null,null,null,null,null,null,null,null,null,null,null,null,null,null,null,null,null,null,null,null,null,null,null,null,null,null,null,null,null,null,null,null,null,null,null,null,null,null,null,null,null,null,null,null,null,null,null,null,null,null,null,null,null,null,null,null,null,null,null,null,null,null,null,null,null,null,null,null,null,null,null,null,null,null,null,null,null,null,null,null,null,null,null,null,null,null,null,null,null,null,null,null,null,null,null,null,null,null,null,null,null,null,null,null,null,null,null,null,null,null,null,null,null,null,null,null,null,null,null,null,null,null,null,null,null,null,null,null,null,null,null,null,null,null,null,null,null,null,null,null,null,null,null,null,null,null,null,null,null,null,null,null,null,null,null,null,null,null,null,null,null,null,null,null,null,null,null,null,null,null,null,null,null,null,null,null,null,null,null,null,null,null,null,null,null,null,null,null,null,null,null,null,null,null,null,null,null,null,null,null,null,null,null,null,null,null,null,null,null,null,null,null,null,null,null,null,null,null,null,null,null,null,null,null,null,null,null,null,null,null,null,null,null,null,null,null,null,null,null,null,null,null,null,null,null,null,null,null,null,null,null,null,null,null,null,null,null,null,null,null,null,null,null,null,null,null,null,null,null,null,null,null,null,null,null,null,null,null,null,null,null,null,null,null,null,null,null,null,null,null,null,null,null,null,null,null,null,null,null,null,null,null,null,null,null,null,null,null,null,null,null,null,null,null,null,null,null,null,null,null,null,null,null,null,null,null,null,null,null,null,null,null,null,null,null,null,null,null,null,null,null,null,null,null,null,null,null,null,null,null,null,null,null,null,null,null,null,null,null,null,null,null,null,null,null,null,null,null,null,null,null,null,null,null,null,null,null,null,null,null,null,null,null,null,null,null,null,null,null,null,null,null,null,null,null,null,null,null,null,null,null,null,null,null,null,null,null,null,null,null,null,null,null,null,null,null,null,null,null,null,null,null,null,null,null,null,null,null,null,null,null,null,null,null,null,null,null,null,null,null,null,null,null,null,null,null,null,null,null,null,null,null,null,null,null,null,null,null,null,null,null,null,null,null,null,null,null,null,null,null,null,null,null,null,null,null,null,null,null,null,null,null,null,null,null,null,null,null,null,null,null,null,null,null,null,null,null,null,null,null,null,null,null,null,null,null,null,null,null,null,null,null,null,null,null,null,null,null,null,null,null,null,null,null,null,null,null,null,null,null,null,null,null,null,null,null,null,null,null,null,null,null,null,null,null,null,null,null,null,null,null,null,null,null,null,null,null,null,null,null,null,null,null,null,null,null,null,null,null,null,null,null,null,null,null,null,null,null,null,null,null,null,null,null,null,null,null,null,null,null,null,null,null,null,null,null,null,null,null,null,null,null,null,null,null,null,null,null,null,null,null,null,null,null,null,null,null,null,null,null,null,null,null,null,null,null,null,null,null,null,null,null,null,null,null,null,null,null,null,null,null,null,null,null,null,null,null,null,null,null,null,null,null,null,null,null,null,null,null,null,null,null,null,null,null,null,null,null,null,null,null,null,null,null,null,null,null,null,null,null,null,null,null,null,null,null,null,null,null,null,null,null,null,null,null,null,null,null,null,null,null,null,null,null,null,null,null,null,null,null,null,null,null,null,null,null,null,null,null,null,null,null,null,null,null,null,null,null,null,null,null,null,null,null,null,null,null,null,null,null,null,null,null,null,null,null,null,null,null,null,null,null,null,null,null,null,null,null,null,null,null,null,null,null,null,null,null,null,null,null,null,null,null,null,null,null,null,null,null,null,null,null,null,null,null,null,null,null,null,null,null,null,null,null,null,null,null,null,null,null,null,null,null,null,null,null,null,null,null,null,null,null,null,null,null,null,null,null,null,null,null,null,null,null,null,null,null,null,null,null,null,null,null,null,null,null,null,null,null,null,null,null,null,null,null,null,null,null,null,null,null,null,null,null,null,null,null,null,null,null,null,null,null,null,null,null,null,null,null,null,null,null,null,null,null,null,null,null,null,null,null,null,null,null,null,null,null,null,null,null,null,null,null,null,null,null,null,null,null,null,null,null,null,null,null,null,null,null,null,null,null,null,null,null,null,null,null,null,null,null,null,null,null,null,null,null,null,null,null,null,null,null,null,null,null,null,null,null,null,null,null,null,null,null,null,null,null,null,null,null,null,null,null,null,null,null,null,null,"."]
[null,"2.2.V11",null,"CIRS_11 Sistema muscolo-scheletrico e cute",null,null,null,null,null,null,null,null,null,null,null,null,null,null,null,null,null,null,null,null,null,null,null,null,null,null,null,null,null,null,null,null,null,null,null,null,null,null,null,null,null,null,null,null,null,null,null,null,null,null,null,null,null,null,null,null,null,null,null,null,null,null,null,null,null,null,null,null,null,null,null,null,null,null,null,null,null,null,null,null,null,null,null,null,null,null,null,null,null,null,null,null,null,null,null,null,null,null,null,null,null,null,null,null,null,null,null,null,null,null,null,null,null,null,null,null,null,null,null,null,null,null,null,null,null,null,null,null,null,null,null,null,null,null,null,null,null,null,null,null,null,null,null,null,null,null,null,null,null,null,null,null,null,null,null,null,null,null,null,null,null,null,null,null,null,null,null,null,null,null,null,null,null,null,null,null,null,null,null,null,null,null,null,null,null,null,null,null,null,null,null,null,null,null,null,null,null,null,null,null,null,null,null,null,null,null,null,null,null,null,null,null,null,null,null,null,null,null,null,null,null,null,null,null,null,null,null,null,null,null,null,null,null,null,null,null,null,null,null,null,null,null,null,null,null,null,null,null,null,null,null,null,null,null,null,null,null,null,null,null,null,null,null,null,null,null,null,null,null,null,null,null,null,null,null,null,null,null,null,null,null,null,null,null,null,null,null,null,null,null,null,null,null,null,null,null,null,null,null,null,null,null,null,null,null,null,null,null,null,null,null,null,null,null,null,null,null,null,null,null,null,null,null,null,null,null,null,null,null,null,null,null,null,null,null,null,null,null,null,null,null,null,null,null,null,null,null,null,null,null,null,null,null,null,null,null,null,null,null,null,null,null,null,null,null,null,null,null,null,null,null,null,null,null,null,null,null,null,null,null,null,null,null,null,null,null,null,null,null,null,null,null,null,null,null,null,null,null,null,null,null,null,null,null,null,null,null,null,null,null,null,null,null,null,null,null,null,null,null,null,null,null,null,null,null,null,null,null,null,null,null,null,null,null,null,null,null,null,null,null,null,null,null,null,null,null,null,null,null,null,null,null,null,null,null,null,null,null,null,null,null,null,null,null,null,null,null,null,null,null,null,null,null,null,null,null,null,null,null,null,null,null,null,null,null,null,null,null,null,null,null,null,null,null,null,null,null,null,null,null,null,null,null,null,null,null,null,null,null,null,null,null,null,null,null,null,null,null,null,null,null,null,null,null,null,null,null,null,null,null,null,null,null,null,null,null,null,null,null,null,null,null,null,null,null,null,null,null,null,null,null,null,null,null,null,null,null,null,null,null,null,null,null,null,null,null,null,null,null,null,null,null,null,null,null,null,null,null,null,null,null,null,null,null,null,null,null,null,null,null,null,null,null,null,null,null,null,null,null,null,null,null,null,null,null,null,null,null,null,null,null,null,null,null,null,null,null,null,null,null,null,null,null,null,null,null,null,null,null,null,null,null,null,null,null,null,null,null,null,null,null,null,null,null,null,null,null,null,null,null,null,null,null,null,null,null,null,null,null,null,null,null,null,null,null,null,null,null,null,null,null,null,null,null,null,null,null,null,null,null,null,null,null,null,null,null,null,null,null,null,null,null,null,null,null,null,null,null,null,null,null,null,null,null,null,null,null,null,null,null,null,null,null,null,null,null,null,null,null,null,null,null,null,null,null,null,null,null,null,null,null,null,null,null,null,null,null,null,null,null,null,null,null,null,null,null,null,null,null,null,null,null,null,null,null,null,null,null,null,null,null,null,null,null,null,null,null,null,null,null,null,null,null,null,null,null,null,null,null,null,null,null,null,null,null,null,null,null,null,null,null,null,null,null,null,null,null,null,null,null,null,null,null,null,null,null,null,null,null,null,null,null,null,null,null,null,null,null,null,null,null,null,null,null,null,null,null,null,null,null,null,null,null,null,null,null,null,null,null,null,null,null,null,null,null,null,null,null,null,null,null,null,null,null,null,null,null,null,null,null,null,null,null,null,null,null,null,null,null,null,null,null,null,null,null,null,null,null,null,null,null,null,null,null,null,null,null,null,null,null,null,null,null,null,null,null,null,null,null,null,null,null,null,null,null,null,null,null,null,null,null,null,null,null,null,null,null,null,null,null,null,null,null,null,null,null,null,null,null,null,null,null,null,null,null,null,null,null,null,null,null,null,null,null,null,null,null,null,null,null,null,null,null,null,null,null,null,null,null,null,null,null,null,null,null,null,null,null,null,null,null,null,null,null,null,null,null,null,null,null,null,null,null,null,null,null,null,null,null,null,null,null,null,null,null,null,null,null,null,null,null,"."]
[null,"2.2.V12",null,"CIRS_12 Sistema nervoso centrale e periferico",null,null,null,null,null,null,null,null,null,null,null,null,null,null,null,null,null,null,null,null,null,null,null,null,null,null,null,null,null,null,null,null,null,null,null,null,null,null,null,null,null,null,null,null,null,null,null,null,null,null,null,null,null,null,null,null,null,null,null,null,null,null,null,null,null,null,null,null,null,null,null,null,null,null,null,null,null,null,null,null,null,null,null,null,null,null,null,null,null,null,null,null,null,null,null,null,null,null,null,null,null,null,null,null,null,null,null,null,null,null,null,null,null,null,null,null,null,null,null,null,null,null,null,null,null,null,null,null,null,null,null,null,null,null,null,null,null,null,null,null,null,null,null,null,null,null,null,null,null,null,null,null,null,null,null,null,null,null,null,null,null,null,null,null,null,null,null,null,null,null,null,null,null,null,null,null,null,null,null,null,null,null,null,null,null,null,null,null,null,null,null,null,null,null,null,null,null,null,null,null,null,null,null,null,null,null,null,null,null,null,null,null,null,null,null,null,null,null,null,null,null,null,null,null,null,null,null,null,null,null,null,null,null,null,null,null,null,null,null,null,null,null,null,null,null,null,null,null,null,null,null,null,null,null,null,null,null,null,null,null,null,null,null,null,null,null,null,null,null,null,null,null,null,null,null,null,null,null,null,null,null,null,null,null,null,null,null,null,null,null,null,null,null,null,null,null,null,null,null,null,null,null,null,null,null,null,null,null,null,null,null,null,null,null,null,null,null,null,null,null,null,null,null,null,null,null,null,null,null,null,null,null,null,null,null,null,null,null,null,null,null,null,null,null,null,null,null,null,null,null,null,null,null,null,null,null,null,null,null,null,null,null,null,null,null,null,null,null,null,null,null,null,null,null,null,null,null,null,null,null,null,null,null,null,null,null,null,null,null,null,null,null,null,null,null,null,null,null,null,null,null,null,null,null,null,null,null,null,null,null,null,null,null,null,null,null,null,null,null,null,null,null,null,null,null,null,null,null,null,null,null,null,null,null,null,null,null,null,null,null,null,null,null,null,null,null,null,null,null,null,null,null,null,null,null,null,null,null,null,null,null,null,null,null,null,null,null,null,null,null,null,null,null,null,null,null,null,null,null,null,null,null,null,null,null,null,null,null,null,null,null,null,null,null,null,null,null,null,null,null,null,null,null,null,null,null,null,null,null,null,null,null,null,null,null,null,null,null,null,null,null,null,null,null,null,null,null,null,null,null,null,null,null,null,null,null,null,null,null,null,null,null,null,null,null,null,null,null,null,null,null,null,null,null,null,null,null,null,null,null,null,null,null,null,null,null,null,null,null,null,null,null,null,null,null,null,null,null,null,null,null,null,null,null,null,null,null,null,null,null,null,null,null,null,null,null,null,null,null,null,null,null,null,null,null,null,null,null,null,null,null,null,null,null,null,null,null,null,null,null,null,null,null,null,null,null,null,null,null,null,null,null,null,null,null,null,null,null,null,null,null,null,null,null,null,null,null,null,null,null,null,null,null,null,null,null,null,null,null,null,null,null,null,null,null,null,null,null,null,null,null,null,null,null,null,null,null,null,null,null,null,null,null,null,null,null,null,null,null,null,null,null,null,null,null,null,null,null,null,null,null,null,null,null,null,null,null,null,null,null,null,null,null,null,null,null,null,null,null,null,null,null,null,null,null,null,null,null,null,null,null,null,null,null,null,null,null,null,null,null,null,null,null,null,null,null,null,null,null,null,null,null,null,null,null,null,null,null,null,null,null,null,null,null,null,null,null,null,null,null,null,null,null,null,null,null,null,null,null,null,null,null,null,null,null,null,null,null,null,null,null,null,null,null,null,null,null,null,null,null,null,null,null,null,null,null,null,null,null,null,null,null,null,null,null,null,null,null,null,null,null,null,null,null,null,null,null,null,null,null,null,null,null,null,null,null,null,null,null,null,null,null,null,null,null,null,null,null,null,null,null,null,null,null,null,null,null,null,null,null,null,null,null,null,null,null,null,null,null,null,null,null,null,null,null,null,null,null,null,null,null,null,null,null,null,null,null,null,null,null,null,null,null,null,null,null,null,null,null,null,null,null,null,null,null,null,null,null,null,null,null,null,null,null,null,null,null,null,null,null,null,null,null,null,null,null,null,null,null,null,null,null,null,null,null,null,null,null,null,null,null,null,null,null,null,null,null,null,null,null,null,null,null,null,null,null,null,null,null,null,null,null,null,null,null,null,null,null,null,null,null,null,null,null,null,null,null,null,null,null,null,null,null,null,null,null,null,null,null,null,null,null,null,null,null,null,null,null,null,null,null,"."]
[null,"2.2.V13",null,"CIRS_13 Sistema endocrino-metabolico",null,null,null,null,null,null,null,null,null,null,null,null,null,null,null,null,null,null,null,null,null,null,null,null,null,null,null,null,null,null,null,null,null,null,null,null,null,null,null,null,null,null,null,null,null,null,null,null,null,null,null,null,null,null,null,null,null,null,null,null,null,null,null,null,null,null,null,null,null,null,null,null,null,null,null,null,null,null,null,null,null,null,null,null,null,null,null,null,null,null,null,null,null,null,null,null,null,null,null,null,null,null,null,null,null,null,null,null,null,null,null,null,null,null,null,null,null,null,null,null,null,null,null,null,null,null,null,null,null,null,null,null,null,null,null,null,null,null,null,null,null,null,null,null,null,null,null,null,null,null,null,null,null,null,null,null,null,null,null,null,null,null,null,null,null,null,null,null,null,null,null,null,null,null,null,null,null,null,null,null,null,null,null,null,null,null,null,null,null,null,null,null,null,null,null,null,null,null,null,null,null,null,null,null,null,null,null,null,null,null,null,null,null,null,null,null,null,null,null,null,null,null,null,null,null,null,null,null,null,null,null,null,null,null,null,null,null,null,null,null,null,null,null,null,null,null,null,null,null,null,null,null,null,null,null,null,null,null,null,null,null,null,null,null,null,null,null,null,null,null,null,null,null,null,null,null,null,null,null,null,null,null,null,null,null,null,null,null,null,null,null,null,null,null,null,null,null,null,null,null,null,null,null,null,null,null,null,null,null,null,null,null,null,null,null,null,null,null,null,null,null,null,null,null,null,null,null,null,null,null,null,null,null,null,null,null,null,null,null,null,null,null,null,null,null,null,null,null,null,null,null,null,null,null,null,null,null,null,null,null,null,null,null,null,null,null,null,null,null,null,null,null,null,null,null,null,null,null,null,null,null,null,null,null,null,null,null,null,null,null,null,null,null,null,null,null,null,null,null,null,null,null,null,null,null,null,null,null,null,null,null,null,null,null,null,null,null,null,null,null,null,null,null,null,null,null,null,null,null,null,null,null,null,null,null,null,null,null,null,null,null,null,null,null,null,null,null,null,null,null,null,null,null,null,null,null,null,null,null,null,null,null,null,null,null,null,null,null,null,null,null,null,null,null,null,null,null,null,null,null,null,null,null,null,null,null,null,null,null,null,null,null,null,null,null,null,null,null,null,null,null,null,null,null,null,null,null,null,null,null,null,null,null,null,null,null,null,null,null,null,null,null,null,null,null,null,null,null,null,null,null,null,null,null,null,null,null,null,null,null,null,null,null,null,null,null,null,null,null,null,null,null,null,null,null,null,null,null,null,null,null,null,null,null,null,null,null,null,null,null,null,null,null,null,null,null,null,null,null,null,null,null,null,null,null,null,null,null,null,null,null,null,null,null,null,null,null,null,null,null,null,null,null,null,null,null,null,null,null,null,null,null,null,null,null,null,null,null,null,null,null,null,null,null,null,null,null,null,null,null,null,null,null,null,null,null,null,null,null,null,null,null,null,null,null,null,null,null,null,null,null,null,null,null,null,null,null,null,null,null,null,null,null,null,null,null,null,null,null,null,null,null,null,null,null,null,null,null,null,null,null,null,null,null,null,null,null,null,null,null,null,null,null,null,null,null,null,null,null,null,null,null,null,null,null,null,null,null,null,null,null,null,null,null,null,null,null,null,null,null,null,null,null,null,null,null,null,null,null,null,null,null,null,null,null,null,null,null,null,null,null,null,null,null,null,null,null,null,null,null,null,null,null,null,null,null,null,null,null,null,null,null,null,null,null,null,null,null,null,null,null,null,null,null,null,null,null,null,null,null,null,null,null,null,null,null,null,null,null,null,null,null,null,null,null,null,null,null,null,null,null,null,null,null,null,null,null,null,null,null,null,null,null,null,null,null,null,null,null,null,null,null,null,null,null,null,null,null,null,null,null,null,null,null,null,null,null,null,null,null,null,null,null,null,null,null,null,null,null,null,null,null,null,null,null,null,null,null,null,null,null,null,null,null,null,null,null,null,null,null,null,null,null,null,null,null,null,null,null,null,null,null,null,null,null,null,null,null,null,null,null,null,null,null,null,null,null,null,null,null,null,null,null,null,null,null,null,null,null,null,null,null,null,null,null,null,null,null,null,null,null,null,null,null,null,null,null,null,null,null,null,null,null,null,null,null,null,null,null,null,null,null,null,null,null,null,null,null,null,null,null,null,null,null,null,null,null,null,null,null,null,null,null,null,null,null,null,null,null,null,null,null,null,null,null,null,null,null,null,null,null,null,null,null,null,null,null,null,null,null,null,null,null,null,null,null,null,null,null,null,null,"."]
[null,"2.2.V14",null,"CIRS_14 Disturbi psichici/comportamentali",null,null,null,null,null,null,null,null,null,null,null,null,null,null,null,null,null,null,null,null,null,null,null,null,null,null,null,null,null,null,null,null,null,null,null,null,null,null,null,null,null,null,null,null,null,null,null,null,null,null,null,null,null,null,null,null,null,null,null,null,null,null,null,null,null,null,null,null,null,null,null,null,null,null,null,null,null,null,null,null,null,null,null,null,null,null,null,null,null,null,null,null,null,null,null,null,null,null,null,null,null,null,null,null,null,null,null,null,null,null,null,null,null,null,null,null,null,null,null,null,null,null,null,null,null,null,null,null,null,null,null,null,null,null,null,null,null,null,null,null,null,null,null,null,null,null,null,null,null,null,null,null,null,null,null,null,null,null,null,null,null,null,null,null,null,null,null,null,null,null,null,null,null,null,null,null,null,null,null,null,null,null,null,null,null,null,null,null,null,null,null,null,null,null,null,null,null,null,null,null,null,null,null,null,null,null,null,null,null,null,null,null,null,null,null,null,null,null,null,null,null,null,null,null,null,null,null,null,null,null,null,null,null,null,null,null,null,null,null,null,null,null,null,null,null,null,null,null,null,null,null,null,null,null,null,null,null,null,null,null,null,null,null,null,null,null,null,null,null,null,null,null,null,null,null,null,null,null,null,null,null,null,null,null,null,null,null,null,null,null,null,null,null,null,null,null,null,null,null,null,null,null,null,null,null,null,null,null,null,null,null,null,null,null,null,null,null,null,null,null,null,null,null,null,null,null,null,null,null,null,null,null,null,null,null,null,null,null,null,null,null,null,null,null,null,null,null,null,null,null,null,null,null,null,null,null,null,null,null,null,null,null,null,null,null,null,null,null,null,null,null,null,null,null,null,null,null,null,null,null,null,null,null,null,null,null,null,null,null,null,null,null,null,null,null,null,null,null,null,null,null,null,null,null,null,null,null,null,null,null,null,null,null,null,null,null,null,null,null,null,null,null,null,null,null,null,null,null,null,null,null,null,null,null,null,null,null,null,null,null,null,null,null,null,null,null,null,null,null,null,null,null,null,null,null,null,null,null,null,null,null,null,null,null,null,null,null,null,null,null,null,null,null,null,null,null,null,null,null,null,null,null,null,null,null,null,null,null,null,null,null,null,null,null,null,null,null,null,null,null,null,null,null,null,null,null,null,null,null,null,null,null,null,null,null,null,null,null,null,null,null,null,null,null,null,null,null,null,null,null,null,null,null,null,null,null,null,null,null,null,null,null,null,null,null,null,null,null,null,null,null,null,null,null,null,null,null,null,null,null,null,null,null,null,null,null,null,null,null,null,null,null,null,null,null,null,null,null,null,null,null,null,null,null,null,null,null,null,null,null,null,null,null,null,null,null,null,null,null,null,null,null,null,null,null,null,null,null,null,null,null,null,null,null,null,null,null,null,null,null,null,null,null,null,null,null,null,null,null,null,null,null,null,null,null,null,null,null,null,null,null,null,null,null,null,null,null,null,null,null,null,null,null,null,null,null,null,null,null,null,null,null,null,null,null,null,null,null,null,null,null,null,null,null,null,null,null,null,null,null,null,null,null,null,null,null,null,null,null,null,null,null,null,null,null,null,null,null,null,null,null,null,null,null,null,null,null,null,null,null,null,null,null,null,null,null,null,null,null,null,null,null,null,null,null,null,null,null,null,null,null,null,null,null,null,null,null,null,null,null,null,null,null,null,null,null,null,null,null,null,null,null,null,null,null,null,null,null,null,null,null,null,null,null,null,null,null,null,null,null,null,null,null,null,null,null,null,null,null,null,null,null,null,null,null,null,null,null,null,null,null,null,null,null,null,null,null,null,null,null,null,null,null,null,null,null,null,null,null,null,null,null,null,null,null,null,null,null,null,null,null,null,null,null,null,null,null,null,null,null,null,null,null,null,null,null,null,null,null,null,null,null,null,null,null,null,null,null,null,null,null,null,null,null,null,null,null,null,null,null,null,null,null,null,null,null,null,null,null,null,null,null,null,null,null,null,null,null,null,null,null,null,null,null,null,null,null,null,null,null,null,null,null,null,null,null,null,null,null,null,null,null,null,null,null,null,null,null,null,null,null,null,null,null,null,null,null,null,null,null,null,null,null,null,null,null,null,null,null,null,null,null,null,null,null,null,null,null,null,null,null,null,null,null,null,null,null,null,null,null,null,null,null,null,null,null,null,null,null,null,null,null,null,null,null,null,null,null,null,null,null,null,null,null,null,null,null,null,null,null,null,null,null,null,null,null,null,null,null,null,null,null,null,null,null,null,null,null,null,null,null,"."]
[null,null,null," Modulo ANQ.Immissione.ZU.V09.202202\n Charité  –  Universitätsmedizin Berlin\n Institut für Medizinische Soziologie \n und Rehabilitationswissenschaft",null,null,null,null,null,null,null,null,null,null,null,null,null,null,null,null,null,null,null,null,null,null,null,null,null,null,null,null,null,null,null,null,null,null,null,null,null,null,null,null,null,null,null,null,null,null,null,null,null,null,null,null,null,null,null,null,null,null,null,null,null,null,null,null,null,null,null,null,null,null,null,null,null,null,null,null,null,null,null,null,null,null,null,null,null,null,null,null,null,null,null,null,null,null,null,null,null,null,null,null,null,null,null,null,null,null,null,null,null,null,null,null,null,null,null,null,null,null,null,null,null,null,null,null,null,null,null,null,null,null,null,null,null,null,null,null,null,null,null,null,null,null,null,null,null,null,null,null,null,null,null,null,null,null,null,null,null,null,null,null,null,null,null,null,null,null,null,null,null,null,null,null,null,null,null,null,null,null,null,null,null,null,null,null,null,null,null,null,null,null,null,null,null,null,null,null,null,null,null,null,null,null,null,null,null,null,null,null,null,null,null,null,null,null,null,null,null,null,null,null,null,null,null,null,null,null,null,null,null,null,null,null,null,null,null,null,null,null,null,null,null,null,null,null,null,null,null,null,null,null,null,null,null,null,null,null,null,null,null,null,null,null,null,null,null,null,null,null,null,null,null,null,null,null,null,null,null,null,null,null,null,null,null,null,null,null,null,null,null,null,null,null,null,null,null,null,null,null,null,null,null,null,null,null,null,null,null,null,null,null,null,null,null,null,null,null,null,null,null,null,null,null,null,null,null,null,null,null,null,null,null,null,null,null,null,null,null,null,null,null,null,null,null,null,null,null,null,null,null,null,null,null,null,null,null,null,null,null,null,null,null,null,null,null,null,null,null,null,null,null,null,null,null,null,null,null,null,null,null,null,null,null,null,null,null,null,null,null,null,null,null,null,null,null,null,null,null,null,null,null,null,null,null,null,null,null,null,null,null,null,null,null,null,null,null,null,null,null,null,null,null,null,null,null,null,null,null,null,null,null,null,null,null,null,null,null,null,null,null,null,null,null,null,null,null,null,null,null,null,null,null,null,null,null,null,null,null,null,null,null,null,null,null,null,null,null,null,null,null,null,null,null,null,null,null,null,null,null,null,null,null,null,null,null,null,null,null,null,null,null,null,null,null,null,null,null,null,null,null,null,null,null,null,null,null,null,null,null,null,null,null,null,null,null,null,null,null,null,null,null,null,null,null,null,null,null,null,null,null,null,null,null,null,null,null,null,null,null,null,null,null,null,null,null,null,null,null,null,null,null,null,null,null,null,null,null,null,null,null,null,null,null,null,null,null,null,null,null,null,null,null,null,null,null,null,null,null,null,null,null,null,null,null,null,null,null,null,null,null,null,null,null,null,null,null,null,null,null,null,null,null,null,null,null,null,null,null,null,null,null,null,null,null,null,null,null,null,null,null,null,null,null,null,null,null,null,null,null,null,null,null,null,null,null,null,null,null,null,null,null,null,null,null,null,null,null,null,null,null,null,null,null,null,null,null,null,null,null,null,null,null,null,null,null,null,null,null,null,null,null,null,null,null,null,null,null,null,null,null,null,null,null,null,null,null,null,null,null,null,null,null,null,null,null,null,null,null,null,null,null,null,null,null,null,null,null,null,null,null,null,null,null,null,null,null,null,null,null,null,null,null,null,null,null,null,null,null,null,null,null,null,null,null,null,null,null,null,null,null,null,null,null,null,null,null,null,null,null,null,null,null,null,null,null,null,null,null,null,null,null,null,null,null,null,null,null,null,null,null,null,null,null,null,null,null,null,null,null,null,null,null,null,null,null,null,null,null,null,null,null,null,null,null,null,null,null,null,null,null,null,null,null,null,null,null,null,null,null,null,null,null,null,null,null,null,null,null,null,null,null,null,null,null,null,null,null,null,null,null,null,null,null,null,null,null,null,null,null,null,null,null,null,null,null,null,null,null,null,null,null,null,null,null,null,null,null,null,null,null,null,null,null,null,null,null,null,null,null,null,null,null,null,null,null,null,null,null,null,null,null,null,null,null,null,null,null,null,null,null,null,null,null,null,null,null,null,null,null,null,null,null,null,null,null,null,null,null,null,null,null,null,null,null,null,null,null,null,null,null,null,null,null,null,null,null,null,null,null,null,null,null,null,null,null,null,null,null,null,null,null,null,null,null,null,null,null,null,null,null,null,null,null,null,null,null,null,null,null,null,null,null,null,null,null,null,null,null,null,null,null,null,null,null,null,null,null,null,null,null,null,null,null,null,null,null,null,null,null,null,null,null,null,null,null,null,null,null,null,null,null,null,"."]
[null,0,null,1]
[null,1,null,2]
[null,2,null,3]
[null,3,null,4]
[null,4,null,5]
[null,5,null,9]
[null,6]
[null,7,null,"ZU"]
[null,8]
[null,9]
[null,10]